Workbook

Sheet PLANILHA ORÇAMENTÁRIA
B1: PREFEITURA MUNICIPAL DE JOÃO NEIVA | E1: Data-base: | F1: DER-ES EDIFICAÇÕES - FEV/2023
B2: PLANILHA DE QUANTIDADES E PREÇOS UNITÁRIOS | F2: DER-ES RODOVIAS SEM DESONERAÇÃO - JUL/2022
B3: OBRA: REFORMA DAS PRAÇAS DE CAVALINHO
B4: LOCAL: CAVALINHO - JOÃO NEIVA/ES | E4: Leis Sociais: | G4: 157.27%
B5: ORÇAMENTISTA: JULIANA MARETO AMBROZIM CREA:ES-18536/D | E5: BDI: | G5: 34.71%
B6: REVISÃO DO ORÇAMENTO: THAIS BAPTISTA MENELLI CAU/ES A181604-7 / BRUNA PEROVANO SIRTULI CAU/ES A187736-4 | E6: Data da Revisão: 18/04/2023
A7: Item | B7: Orgão | C7: Código | D7: DESCRIÇÃO SERVIÇO | E7: Unid. | F7: Quant. | G7: R$ Custo
G8: Unitário | H8: Unitário c/ BDI | I8: Total
A9: 01 | D9: CANTEIRO DE OBRAS
A10: 01.01 | B10: DER-ES | C10: 020305 | D10: Placa de obra nas dimensões de 2.0 x 4.0 m, padrão DER m2 | E10: m² | F10: ='MEMÓRIA DE CÁLCULO'!P11 -> 8.00 | G10: R$ 242.13 | H10: =TRUNC(ROUND(G10*(1+$G$5),2),2) -> R$ 326.17 | I10: =TRUNC(ROUND(F10*H10,2),2) -> R$ 2,609.36
A11: 01.02 | B11: DER-ES | C11: 020350 | D11: Tapume Telha Metálica Ondulada em aço galvalume 0,50mm Branca h=2,20m, incl. montagem estr. mad. 8"x8", c/adesivo "DER-ES" 60x60cm a cada 10m, incl. faixas pint. esmalte sint. cores azul c/ h=30cm e rosac/ h=10cm (Reaproveitamento 2x) | E11: m | F11: ='MEMÓRIA DE CÁLCULO'!P39 -> 152.30 | G11: R$ 193.41 | H11: R$ 260.54 | I11: =TRUNC(ROUND(F11*H11,2),2) -> R$ 39,680.24
A12: 01.03 | B12: DER-ES | C12: 020701 | D12: Barracão para escritório com sanitário área de 14.50 m2, de chapa de compens. 12mm e pontalete 8x8cm, piso cimentado e cobertura de telha de fibroc. 6mm, incl. ponto de luz e cx. de inspeção, conf. projeto (1 utilização) | E12: m² | F12: ='MEMÓRIA DE CÁLCULO'!P43 -> 14.50 | G12: R$ 826.41 | H12: R$ 1,113.26 | I12: R$ 16,142.27
A13: 01.04 | B13: DER-ES | C13: 020702 | D13: Barracão para almoxarifado área de 10.90m2, de chapa de compensado de 12mm e pontalete 8x8cm, piso cimentado e cobertura de telhas de fibrocimento de 6mm, incl. ponto de luz, conf. projeto (1 utilização) | E13: m² | F13: ='MEMÓRIA DE CÁLCULO'!P47 -> 10.90 | G13: R$ 606.60 | H13: R$ 817.15 | I13: R$ 8,906.94
A14: 01.05 | B14: DER-ES | C14: 020704 | D14: Refeitório com paredes de chapa de compens. 12mm e pontaletes 8x8cm, piso ciment. e cob. de telhas fibroc. 6mm, incl. ponto de luz e cx. de inspeção (cons. 1.21 m2/func./turno), conf. projeto (1 utilização) | E14: m² | F14: ='MEMÓRIA DE CÁLCULO'!P51 -> 14.00 | G14: R$ 481.03 | H14: R$ 648.00 | I14: R$ 9,072.00
A15: 01.06 | B15: DER-ES | C15: 020711 | D15: Reservatório de poliestileno de 1000 L, incl. suporte em madeira de 7x12cm e 8x7cm, elevado de 4m, conf. projeto (1 utilização) | E15: und | F15: ='MEMÓRIA DE CÁLCULO'!P55 -> 1.00 | G15: R$ 2,818.64 | H15: R$ 3,796.99 | I15: R$ 3,796.99
A16: 01.07 | B16: DER-ES | C16: 020712 | D16: Rede de água com padrão de entrada d'água diâm. 3/4", conf. espec. CESAN, incl. tubos e conexões para alimentação, distribuição, extravasor e limpeza, cons. o padrão a 25m, conf. projeto (1 utilização) | E16: m | F16: ='MEMÓRIA DE CÁLCULO'!P59 -> 15.00 | G16: R$ 53.19 | H16: =TRUNC(ROUND(G16*(1+$G$5),2),2) -> R$ 71.65 | I16: R$ 1,074.75
A17: 01.08 | B17: DER-ES | C17: 020713 | D17: Rede de luz, incl. padrão entrada de energia trifás., cabo de ligação até barracões, quadro de distrib., disj. e chave de força (quando necessário), cons. 20m entre padrão entrada e QDG, conf. projeto (1 utilização) | E17: m | F17: ='MEMÓRIA DE CÁLCULO'!P63 -> 15.00 | G17: R$ 493.36 | H17: =TRUNC(ROUND(G17*(1+$G$5),2),2) -> R$ 664.61 | I17: R$ 9,969.15
A18: 01.09 | B18: DER-ES | C18: 020714 | D18: Rede de esgoto, contendo fossa e filtro, inclusive tubos e conexões de ligação entre caixas, considerando distância de 25m, conforme projeto (1 utilização) | E18: m | F18: ='MEMÓRIA DE CÁLCULO'!P67 -> 5.00 | G18: R$ 384.56 | H18: =TRUNC(ROUND(G18*(1+$G$5),2),2) -> R$ 518.04 | I18: R$ 2,590.20
D19: SUB-TOTAL 01 | I19: =SUM(I10:I18) -> R$ 93,841.90
A21: 02 | D21: DEMOLIÇÃO E REGULARIZAÇÃO | G21: 0
A22: 02.01 | B22: DER-ES | C22: 010216 | D22: Retirada de meio-fio de concreto | E22: m | F22: ='MEMÓRIA DE CÁLCULO'!P97 -> 223.95 | G22: R$ 8.99 | H22: =TRUNC(ROUND(G22*(1+$G$5),2),2) -> R$ 12.11 | I22: =TRUNC(ROUND(F22*H22,2),2) -> R$ 2,712.03
A23: 02.02 | B23: DER-ES | C23: 010210 | D23: Demolição manual de concreto simples (EMOP 05.001.001) | E23: m³ | F23: ='MEMÓRIA DE CÁLCULO'!P110 -> 4.85 | G23: R$ 253.60 | H23: R$ 341.62 | I23: R$ 1,658.22
A24: 02.03 | B24: DER-ES (Rodovias) | C24: 40891 | D24: Remoção de pavimentação poliédrica | E24: m² | F24: ='MEMÓRIA DE CÁLCULO'!P129 -> 504.32 | G24: R$ 19.53 | H24: R$ 26.31 | I24: R$ 13,268.66
A25: 02.04 | B25: COMP | C25: EQU-03 | D25: Retirada de lixeira | E25: und | F25: ='MEMÓRIA DE CÁLCULO'!P133 -> 4.00 | G25: ='EQU-03'!I33 -> R$ 7.44 | H25: R$ 10.02 | I25: R$ 40.08
A26: 02.05 | B26: COMP | C26: EQU-04 | D26: Retirada de mobiliário urbano | E26: und | F26: ='MEMÓRIA DE CÁLCULO'!P137 -> 3.00 | G26: ='EQU-04'!I33 -> R$ 18.61 | H26: R$ 25.07 | I26: R$ 75.21
A27: 02.06 | B27: DER-ES | C27: 030304 | D27: Índice de preço para remoção de entulho decorrente da execução de obras (Classe A CONAMA - NBR 10.004 - Classe II-B), incluindo aluguel da caçamba, carga, transporte e descarga em área licenciada | E27: m³ | F27: ='MEMÓRIA DE CÁLCULO'!P143 -> 43.18 | G27: R$ 71.32 | H27: R$ 96.08 | I27: R$ 4,148.29
A28: 02.07 | B28: DER-ES | C28: 030209 | D28: Aterro com areia em áreas de calçada, inclusive fornecimento e adensamento | E28: m³ | F28: ='MEMÓRIA DE CÁLCULO'!P150 -> 71.42 | G28: R$ 171.49 | H28: R$ 231.01 | I28: =TRUNC(ROUND(F28*H28,2),2) -> R$ 16,499.20
D29: SUB-TOTAL 02 | I29: =SUM(I22:I28) -> R$ 38,401.69
A31: 03 | D31: LOCAÇÃO
A32: 03.01 | B32: DER-ES | C32: 010501 | D32: Locação de obra com gabarito de madeira | E32: m² | F32: ='MEMÓRIA DE CÁLCULO'!P158 -> 552.57 | G32: R$ 10.97 | H32: =TRUNC(ROUND(G32*(1+$G$5),2),2) -> R$ 14.78 | I32: =TRUNC(ROUND(F32*H32,2),2) -> R$ 8,166.98
D33: SUB-TOTAL 03 | I33: =SUM(I32) -> R$ 8,166.98
A35: 04 | D35: ESCAVAÇÕES
A36: 04.01 | B36: DER-ES | C36: 030101 | D36: Escavação manual em material de 1a. categoria, até 1.50 m de profundidade | E36: m² | F36: ='MEMÓRIA DE CÁLCULO'!P166 -> 27.00 | G36: R$ 51.51 | H36: =TRUNC(ROUND(G36*(1+$G$5),2),2) -> R$ 69.39 | I36: =TRUNC(ROUND(F36*H36,2),2) -> R$ 1,873.83
D37: SUB-TOTAL 04 | I37: =SUM(I36) -> R$ 1,873.83
A39: 05 | D39: REATERRO E COMPACTAÇÃO
A40: 05.01 | B40: DER-ES | C40: 030211 | D40: Reaterro de valas, exclusive compactação | E40: m³ | F40: ='MEMÓRIA DE CÁLCULO'!P175 -> 18.94 | G40: R$ 7.13 | H40: =TRUNC(ROUND(G40*(1+$G$5),2),2) -> R$ 9.60 | I40: =TRUNC(ROUND(F40*H40,2),2) -> R$ 181.81
D41: SUB-TOTAL 05 | I41: =SUM(I40) -> R$ 181.81
A43: 06 | D43: ALVENARIA ESTRUTURAL
A44: 06.01 | B44: DER-ES | C44: 050501 | D44: Alvenaria de blocos de concreto estrut. (14x19x39cm) cheios, c/ resist. mín. compr. 15MPa, assentados c/ arg. de cimento e areia no traço 1:4, esp. juntas 10mm e esp. da parede s/ revest. 14cm | E44: m² | F44: ='MEMÓRIA DE CÁLCULO'!P182 -> 21.58 | G44: R$ 127.34 | H44: =TRUNC(ROUND(G44*(1+$G$5),2),2) -> R$ 171.54 | I44: =TRUNC(ROUND(F44*H44,2),2) -> R$ 3,701.83
D45: SUB-TOTAL 06 | I45: =SUM(I44) -> R$ 3,701.83
A47: 07 | D47: DRENAGEM
A48: 07.01 | B48: DER-ES (Rodovias) | C48: 40890 | D48: Remoção e reassentamento de blocos de concreto, inclusive perdas | E48: m² | F48: ='MEMÓRIA DE CÁLCULO'!P188 -> 57.00 | G48: R$ 81.19 | H48: =TRUNC(ROUND(G48*(1+$G$5),2),2) -> R$ 109.37 | I48: =TRUNC(ROUND(F48*H48,2),2) -> R$ 6,234.09
A49: 07.02 | B49: DER-ES (Rodovias) | C49: 40420 | D49: Corpo BSTC diâmetro 0,30 m C.S. PB inclusive escavação, reaterro e transporte do tubo | E49: m | F49: ='MEMÓRIA DE CÁLCULO'!P199 -> 39.70 | G49: R$ 145.11 | H49: R$ 195.48 | I49: R$ 7,760.56
A50: 07.03 | B50: DER-ES (Rodovias) | C50: 40423 | D50: Corpo BSTC diâmetro 0,40 m C.S. PB inclusive escavação, reaterro e transporte do tubo | E50: m | F50: ='MEMÓRIA DE CÁLCULO'!P204 -> 22.00 | G50: R$ 190.65 | H50: R$ 256.82 | I50: R$ 5,650.04
A51: 07.04 | B51: DER-ES (Rodovias) | C51: 41241 | D51: Caixa ralo em blocos pré-moldados e grelha articulada em FFA em Vias Urbanas | E51: und | F51: ='MEMÓRIA DE CÁLCULO'!P208 -> 7.00 | G51: R$ 1,559.74 | H51: R$ 2,101.13 | I51: R$ 14,707.91
A52: 07.05 | B52: COMP | C52: DRE-01 | D52: Trincheira drenante em concreto armado, incluíndo grelhas FOFO, escavação e reaterro | E52: m | F52: ='MEMÓRIA DE CÁLCULO'!P212 -> 2.60 | G52: ='DRE-01'!I35 -> R$ 1,421.02 | H52: =TRUNC(ROUND(G52*(1+$G$5),2),2) -> R$ 1,914.26 | I52: R$ 4,977.08
A53: 07.06 | B53: DER-ES (Rodovias) | C53: 43046 | D53: Poço de visita para BSTC diâm. 0,40 m em blocos de concreto, em Vias Urbanas | E53: und | F53: ='MEMÓRIA DE CÁLCULO'!P216 -> 2.00 | G53: R$ 1,860.89 | H53: R$ 2,506.80 | I53: =TRUNC(ROUND(F53*H53,2),2) -> R$ 5,013.60
D54: SUB-TOTAL 07 | I54: =SUM(I48:I53) -> R$ 44,343.28
A56: 08 | D56: LASTRO DE CONTRAPISO
A57: 08.01 | B57: DER-ES | C57: 130111 | D57: Lastro impermeabilizado de concreto não estrutural, espessura de 6 cm | E57: m² | F57: ='MEMÓRIA DE CÁLCULO'!P223 -> 20.01 | G57: R$ 60.07 | H57: =TRUNC(ROUND(G57*(1+$G$5),2),2) -> R$ 80.92 | I57: =TRUNC(ROUND(F57*H57,2),2) -> R$ 1,619.40
D58: SUB-TOTAL 08 | I58: =SUM(I57) -> R$ 1,619.40
A60: 09 | D60: PAVIMENTAÇÃO | F60: 0 | G60: R$ 0.00
A61: 09.01 | B61: DER-ES | C61: 130112 | D61: Lastro de concreto não estrutural, espessura de 6 cm | E61: m² | F61: ='MEMÓRIA DE CÁLCULO'!P229 -> 246.27 | G61: R$ 49.89 | H61: =TRUNC(ROUND(G61*(1+$G$5),2),2) -> R$ 67.21 | I61: =TRUNC(ROUND(F61*H61,2),2) -> R$ 16,551.67
A62: 09.02 | B62: DER-ES | C62: 130230 | D62: Piso argamassa alta resistência tipo granilite ou equiv de qualidade comprovada, esp de 10mm, com juntas plástica em quadros de 1m, na cor natural, com acabamento anti-derrapante mecanizado, inclusive regularização e=3.0cm | E62: m² | F62: ='MEMÓRIA DE CÁLCULO'!P245 -> 192.85 | G62: R$ 125.56 | H62: R$ 169.14 | I62: R$ 32,618.31
A63: 09.03 | B63: COMP | C63: PAV-01 | D63: Pavimentação com blocos de concreto pavi-s colorido H->06cm tipo, colchão de pó de pedra 5cm, inclusive transporte dos blocos e areia, em Vias Urbanas (cores: amarelo, vermelho e grafite) | E63: m² | F63: ='MEMÓRIA DE CÁLCULO'!P249 -> 169.79 | G63: ='PAV-01'!I35 -> R$ 114.48 | H63: R$ 154.22 | I63: R$ 26,185.01
A64: 09.04 | B64: DER-ES | C64: 200202 | D64: Meio-fio de concreto pré-moldado com dimensões de 15x12x30x100 cm , rejuntados com argamassa de cimento e areia no traço 1:3 | E64: m | F64: ='MEMÓRIA DE CÁLCULO'!P279 -> 121.27 | G64: R$ 59.68 | H64: R$ 80.39 | I64: R$ 9,748.90
A65: 09.05 | B65: DER-ES | C65: 200253 | D65: Fornecimento e assentamento de ladrilho hidráulico pastilhado, vermelho, dim. 20x20 cm, esp. 1.5cm, assentado com pasta de cimento colante, exclusive regularização e lastro | E65: m² | F65: ='MEMÓRIA DE CÁLCULO'!P359 -> 49.74 | G65: R$ 97.74 | H65: R$ 131.67 | I65: R$ 6,549.27
A66: 09.06 | B66: DER-ES | C66: 200254 | D66: Fornecimento e assentamento de ladrilho hidráulico ranhurado, vermelho, dim. 20x20 cm, esp. 1.5cm, assentado com pasta de cimento colante, exclusive regularização e lastro | E66: m² | F66: ='MEMÓRIA DE CÁLCULO'!P367 -> 3.68 | G66: R$ 97.74 | H66: R$ 131.67 | I66: R$ 484.55
D67: SUB-TOTAL 09 | I67: =SUM(I61:I66) -> R$ 92,137.71
G68: R$ 0.00
A69: 10 | D69: EQUIPAMENTOS | G69: R$ 0.00
A70: 10.1 | B70: COMP | C70: EQU-01 | D70: Fornecimento e instalação de banco com encosto e assento em madeira conforme detalhe de projeto | E70: und | F70: ='MEMÓRIA DE CÁLCULO'!P374 -> 15.00 | G70: ='EQU-01'!I40 -> R$ 1,051.80 | H70: =TRUNC(ROUND(G70*(1+$G$5),2),2) -> R$ 1,416.88 | I70: =TRUNC(ROUND(F70*H70,2),2) -> R$ 21,253.20
A71: 10.2 | B71: COMP | C71: EQU-02 | D71: Fornecimento instalação de lixeira seletiva 50 litros, com suporte tubular em aço galvanizado, DN 3", incluindo chumbamento em base de concreto | E71: und | F71: ='MEMÓRIA DE CÁLCULO'!P380 -> 5.00 | G71: ='EQU-02'!I33 -> R$ 452.28 | H71: =TRUNC(ROUND(G71*(1+$G$5),2),2) -> R$ 609.27 | I71: =TRUNC(ROUND(F71*H71,2),2) -> R$ 3,046.35
A72: 10.3 | B72: DER-ES | C72: 210301 | D72: Guarda corpo de tubo de ferro galvanizado, diâm. 3" e 2", h=0.8 m inclusive pintura a óleo ou esmalte | E72: m | F72: ='MEMÓRIA DE CÁLCULO'!P384 -> 3.20 | G72: R$ 375.63 | H72: =TRUNC(ROUND(G72*(1+$G$5),2),2) -> R$ 506.01 | I72: =TRUNC(ROUND(F72*H72,2),2) -> R$ 1,619.23
A73: 10.4 | B73: DER-ES | C73: 200573 | D73: Bicicletário em tubo de ferro galvanizado 1" e ferro liso 1/2", inclusive pintura, conforme projeto padrão SEDU | E73: m | F73: ='MEMÓRIA DE CÁLCULO'!P388 -> 3.76 | G73: R$ 244.36 | H73: =TRUNC(ROUND(G73*(1+$G$5),2),2) -> R$ 329.18 | I73: =TRUNC(ROUND(F73*H73,2),2) -> R$ 1,237.72
D74: SUB-TOTAL 10 | G74: R$ 0.00 | I74: =SUM(I70:I73) -> R$ 27,156.50
G75: R$ 0.00
A76: 11 | D76: PAISAGISMO | G76: R$ 0.00
A77: 11.1 | B77: COMP | C77: PAI-05 | D77: Fornecimento e Plantio de GRAMA BATATAIS (Paspalum Notatum) | E77: m² | F77: ='MEMÓRIA DE CÁLCULO'!P399 -> 81.60 | G77: ='PAI-05'!I32 -> R$ 13.09 | H77: =TRUNC(ROUND(G77*(1+$G$5),2),2) -> R$ 17.63 | I77: =TRUNC(ROUND(F77*H77,2),2) -> R$ 1,438.64
A78: 11.2 | B78: COMP | C78: PAI-04 | D78: Fornecimento e Plantio de VEDÉLIA (wedlia trilobata) | E78: und | F78: ='MEMÓRIA DE CÁLCULO'!P406 -> 196.00 | G78: ='PAI-04'!I33 -> R$ 17.90 | H78: =TRUNC(ROUND(G78*(1+$G$5),2),2) -> R$ 24.11 | I78: =TRUNC(ROUND(F78*H78,2),2) -> R$ 4,725.56
A79: 11.3 | B79: COMP | C79: PAI-01 | D79: Fornecimento e Plantio de CLÚSIA (clusia fluminensis) | E79: und | F79: ='MEMÓRIA DE CÁLCULO'!P410 -> 21.00 | G79: ='PAI-01'!I33 -> R$ 36.03 | H79: =TRUNC(ROUND(G79*(1+$G$5),2),2) -> R$ 48.54 | I79: =TRUNC(ROUND(F79*H79,2),2) -> R$ 1,019.34
A80: 11.4 | B80: COMP | C80: PAI-02 | D80: Fornecimento e Plantio de IXORA (ixora coccínea) | E80: und | F80: ='MEMÓRIA DE CÁLCULO'!P414 -> 28.00 | G80: ='PAI-02'!I34 -> R$ 22.46 | H80: =TRUNC(ROUND(G80*(1+$G$5),2),2) -> R$ 30.26 | I80: =TRUNC(ROUND(F80*H80,2),2) -> R$ 847.28
A81: 11.5 | B81: COMP | C81: PAI-03 | D81: Fornecimento e Plantio de PINGO DE OURO (duranta repens) | E81: und | F81: ='MEMÓRIA DE CÁLCULO'!P418 -> 19.00 | G81: ='PAI-03'!I34 -> R$ 8.72 | H81: =TRUNC(ROUND(G81*(1+$G$5),2),2) -> R$ 11.75 | I81: =TRUNC(ROUND(F81*H81,2),2) -> R$ 223.25
D82: SUB-TOTAL 11 | G82: R$ 0.00 | I82: =SUM(I77:I81) -> R$ 8,254.07
A84: 12 | D84: INSTALAÇÕES ELÉTRICAS | G84: R$ 0.00
A85: 12.1 | B85: DER-ES | C85: 151139 | D85: Eletroduto PEAD, cor preta, diam. 2", marca ref. Kanaflex ou equivalente | E85: m | F85: ='MEMÓRIA DE CÁLCULO'!P423 -> 100.00 | G85: R$ 25.37 | H85: =TRUNC(ROUND(G85*(1+$G$5),2),2) -> R$ 34.18 | I85: =TRUNC(ROUND(F85*H85,2),2) -> R$ 3,418.00
A86: 12.2 | B86: DER-ES | C86: 151418 | D86: Cabo de cobre termoplástico (PVC) flexível isolado 0,6/1kV, anti-chama 90ºC HEPR - 4,0 mm2 | E86: m | F86: ='MEMÓRIA DE CÁLCULO'!P427 -> 460.00 | G86: R$ 10.62 | H86: R$ 14.31 | I86: R$ 6,582.60
A87: 12.3 | B87: DER-ES | C87: 151421 | D87: Cabo de cobre termoplástico (PVC) flexível isolado 0,6/1kV, anti-chama 90ºC HEPR - 16,0 mm2 | E87: m | F87: ='MEMÓRIA DE CÁLCULO'!P431 -> 95.00 | G87: R$ 25.93 | H87: R$ 34.93 | I87: R$ 3,318.35
A88: 12.4 | B88: DER-ES | C88: 151703 | D88: Padrão de entrada de energia elétrica, trifásico, entrada aérea, a 4 fios, carga instalada em muro de 15001 até 26000W - 220/127V | E88: und | F88: ='MEMÓRIA DE CÁLCULO'!P435 -> 1.00 | G88: R$ 3,374.97 | H88: =TRUNC(ROUND(G88*(1+$G$5),2),2) -> R$ 4,546.42 | I88: =TRUNC(ROUND(F88*H88,2),2) -> R$ 4,546.42
A89: 12.5 | B89: DER-ES | C89: 150614 | D89: Caixa de passagem de alvenaria de blocos de concreto 9x19x39cm, dimensões de 30x30x50cm, com revestimento interno em chapisco e reboco, tampa de concreto esp.5cm e lastro de brita 5 cm | E89: und | F89: ='MEMÓRIA DE CÁLCULO'!P439 -> 9.00 | G89: R$ 142.54 | H89: R$ 192.02 | I89: R$ 1,728.18
A90: 12.6 | B90: COMP | C90: ELE-01 | D90: Quadro de comando em policarbonato dimensões mínimas 500x400x200mm completo com placa de montagem, disjuntores, contator , trilho, canaleta de pvc e barras de cobre conforme detalhe em projeto | E90: und | F90: ='MEMÓRIA DE CÁLCULO'!P443 -> 1.00 | G90: ='ELE-01'!I31 -> R$ 1,756.04 | H90: R$ 2,365.56 | I90: R$ 2,365.56
A91: 12.7 | B91: COMP | C91: ELE-02 | D91: Poste fotovoltáico, altura de 4,00 m, 2 luminárias 150W, fornecimento e instalação | E91: und | F91: ='MEMÓRIA DE CÁLCULO'!P447 -> 8.00 | G91: ='ELE-02'!I39 -> R$ 8,956.58 | H91: R$ 12,065.41 | I91: R$ 96,523.28
A92: 12.8 | B92: COMP | C92: ELE-03 | D92: Rele fofoelétrico para comando de iluminação externa 1000 W - fornecimento e instalação | E92: und | F92: ='MEMÓRIA DE CÁLCULO'!P451 -> 1.00 | G92: ='ELE-03'!I33 -> R$ 44.06 | H92: R$ 59.35 | I92: R$ 59.35
A93: 12.9 | B93: DER-ES | C93: 150701 | D93: Envelopamento de concreto simples com consumo mínimo de cimento de 250kg/m3, inclusive escavação para profundidade mínima do eletroduto de 50 cm, de 25 x 25 cm, para 1 eletroduto | E93: m | F93: ='MEMÓRIA DE CÁLCULO'!P455 -> 100.00 | G93: R$ 56.43 | H93: R$ 76.02 | I93: R$ 7,602.00
A94: 12.10 | B94: DER-ES | C94: 150918 | D94: Fita isolante em rolo de 19mm x 20 m, número 33 Scoth ou equivalente | E94: und | F94: ='MEMÓRIA DE CÁLCULO'!P459 -> 3.00 | G94: R$ 32.43 | H94: R$ 43.69 | I94: R$ 131.07
D95: SUB-TOTAL 12 | I95: =SUM(I85:I94) -> R$ 126,274.81
A97: 13 | D97: REVESTIMENTO EMPREGANDO ARGAMASSA DE CIMENTO, CAL E AREIA
A98: 13.1 | B98: DER-ES | C98: 120303 | D98: Reboco tipo paulista de argamassa de cimento, cal hidratada CH1 e areia média ou grossa lavada no traço 1:0.5:6, espessura 25 mm | E98: m² | F98: ='MEMÓRIA DE CÁLCULO'!P467 -> 43.16 | G98: R$ 55.01 | H98: =TRUNC(ROUND(G98*(1+$G$5),2),2) -> R$ 74.10 | I98: =TRUNC(ROUND(F98*H98,2),2) -> R$ 3,198.16
A99: 13.2 | B99: DER-ES | C99: 120308 | D99: Chapisco de argamassa de cimento e areia média ou grossa lavada no traço 1:3, espessura 5mm, com utilização de impermeabilizante | E99: m² | F99: ='MEMÓRIA DE CÁLCULO'!P468 -> 43.16 | G99: R$ 7.79 | H99: =TRUNC(ROUND(G99*(1+$G$5),2),2) -> R$ 10.49 | I99: =TRUNC(ROUND(F99*H99,2),2) -> R$ 452.75
D100: SUB-TOTAL 13 | I100: =SUM(I98:I99) -> R$ 3,650.91
A102: 14 | D102: PINTURA
A103: 14.1 | B103: DER-ES | C103: 190117 | D103: Pintura com tinta acrílica, marcas de referência Suvinil, Coral e Metalatex, inclusive selador acrílico, em paredes e forros, a duas demãos | E103: m² | F103: ='MEMÓRIA DE CÁLCULO'!P480 -> 91.39 | G103: R$ 20.51 | H103: =TRUNC(ROUND(G103*(1+$G$5),2),2) -> R$ 27.63 | I103: =TRUNC(ROUND(F103*H103,2),2) -> R$ 2,525.13
A104: 14.2 | B104: DER-ES | C104: 190603 | D104: Pintura sobre pisos, marcas de referência Novacor, Coral ou Suvinil, a duas demãos, Linha Premium | E104: m² | F104: ='MEMÓRIA DE CÁLCULO'!P484 -> 5.46 | G104: R$ 20.40 | H104: =TRUNC(ROUND(G104*(1+$G$5),2),2) -> R$ 27.48 | I104: =TRUNC(ROUND(F104*H104,2),2) -> R$ 150.08
D105: SUB-TOTAL 14 | I105: =SUM(I103:I104) -> R$ 2,675.21
A107: 15 | D107: LIMPEZA
A108: 15.1 | B108: DER-ES | C108: 200402 | D108: Limpeza geral de obras (quadras, praças e jardins) | E108: m² | F108: ='MEMÓRIA DE CÁLCULO'!P491 -> 570.77 | G108: R$ 1.11 | H108: =TRUNC(ROUND(G108*(1+$G$5),2),2) -> R$ 1.50 | I108: =TRUNC(ROUND(F108*H108,2),2) -> R$ 856.16
D109: SUB-TOTAL 15 | I109: =SUM(I108) -> R$ 856.16
A111: TOTAL GERAL | I111: =SUM(I10:I110)/2 -> R$ 453,136.09

Sheet MEMÓRIA DE CÁLCULO
B1: PREFEITURA MUNICIPAL DE JOÃO NEIVA
B2: MEMÓRIA DE CÁLCULO
B3: OBRA: REFORMA DAS PRAÇAS DE CAVALINHO
B4: LOCAL: CAVALINHO - JOÃO NEIVA/ES | C4: REVISÃO DO ORÇAMENTO: THAIS BAPTISTA MENELLI CAU/ES A181604-7 / BRUNA PEROVANO SIRTULI CAU/ES A187736-4
B5: ORÇAMENTISTA: JULIANA MARETO AMBROZIM CREA:ES-18536/D | C5: Data da Revisão: 18/04/2023
A6: CÓD. | B6: DISCRIMINAÇÃO | C6: LOCALIZAÇÃO (Estaca) | I6: POS. | J6: QUANT. | K6: EXT. | L6: LARG. | M6: PROF. | N6: ÁREA | O6: VOLUME | P6: TOTAL | Q6: UND
C7: Inicial | F7: Final | K7: (m) | L7: (m) | M7: (m) | N7: (m²) | O7: (m³)
A8: ='PLANILHA ORÇAMENTÁRIA'!A9 -> 01 | B8: CANTEIRO DE OBRAS
A9: ='PLANILHA ORÇAMENTÁRIA'!A10 -> 01.01 | B9: ='PLANILHA ORÇAMENTÁRIA'!D10 -> Placa de obra nas dimensões de 2.0 x 4.0 m, padrão DER m2
K10: 2.00 | L10: 4.00 | P10: =K10*L10 -> 8.00
B11: QUANTIDADE | P11: =P10 -> 8.00 | Q11: ='PLANILHA ORÇAMENTÁRIA'!E10 -> m²
A13: ='PLANILHA ORÇAMENTÁRIA'!A11 -> 01.02 | B13: ='PLANILHA ORÇAMENTÁRIA'!D11 -> Tapume Telha Metálica Ondulada em aço galvalume 0,50mm Branca h=2,20m, incl. montagem estr. mad. 8"x8", c/adesivo "DER-ES" 60x60cm a cada 10m, incl. faixas pint. esmalte sint. cores azul c/ h=30cm e rosac/ h=10cm (Reaproveitamento 2x)
B14: Considerando 50 cm de afastamento dos limites das praças
B15: Praça Coreto | J15: 1.00 | K15: 21.78 | P15: =K15 -> 21.78
B16: Praça Coreto | J16: 1.00 | K16: 4.67 | P16: =K16 -> 4.67
B17: Praça Coreto | J17: 1.00 | K17: 11.04 | P17: 11.04
B18: Praça Coreto | J18: 1.00 | K18: 4.58 | P18: 4.58
B19: Praça Coreto | J19: 1.00 | K19: 17.35 | P19: 17.35
B20: Praça Coreto | J20: 1.00 | K20: 1.17 | P20: 1.17
B21: Praça 01 | J21: 1.00 | K21: 9.69 | P21: 9.69
B22: Praça 01 | J22: 1.00 | K22: 7.89 | P22: 7.89
B23: Praça 01 | J23: 1.00 | K23: 1.19 | P23: 1.19
B24: Praça 01 | J24: 1.00 | K24: 4.46 | P24: 4.46
B25: Praça 01 | J25: 1.00 | K25: 0.86 | P25: 0.86
B26: Praça 01 | J26: 1.00 | K26: 0.93 | P26: 0.93
B27: Praça 01 | J27: 1.00 | K27: 16.13 | P27: 16.13
B28: Praça 01 | J28: 1.00 | K28: 1.03 | P28: 1.03
B29: Praça 01 | J29: 1.00 | K29: 1.83 | P29: 1.83
B30: Praça 01 | J30: 1.00 | K30: 0.68 | P30: 0.68
B31: Praça 02 | J31: 1.00 | K31: 15.54 | P31: 15.54
B32: Praça 02 | J32: 1.00 | K32: 1.95 | P32: 1.95
B33: Praça 02 | J33: 1.00 | K33: 4.16 | P33: 4.16
B34: Praça 02 | J34: 1.00 | K34: 1.47 | P34: 1.47
B35: Praça 02 | J35: 1.00 | K35: 16.36 | P35: 16.36
B36: Praça 02 | J36: 1.00 | K36: 1.39 | P36: 1.39
B37: Praça 02 | J37: 1.00 | K37: 4.16 | P37: 4.16
B38: Praça 02 | J38: 1.00 | K38: 1.99 | P38: 1.99
B39: QUANTIDADE | P39: =SUM(P15:P38) -> 152.30 | Q39: ='PLANILHA ORÇAMENTÁRIA'!E11 -> m
A41: ='PLANILHA ORÇAMENTÁRIA'!A12 -> 01.03 | B41: ='PLANILHA ORÇAMENTÁRIA'!D12 -> Barracão para escritório com sanitário área de 14.50 m2, de chapa de compens. 12mm e pontalete 8x8cm, piso cimentado e cobertura de telha de fibroc. 6mm, incl. ponto de luz e cx. de inspeção, conf. projeto (1 utilização)
N42: 14.50 | P42: =N42 -> 14.50
B43: QUANTIDADE | P43: =P42 -> 14.50 | Q43: ='PLANILHA ORÇAMENTÁRIA'!E12 -> m²
A45: ='PLANILHA ORÇAMENTÁRIA'!A13 -> 01.04 | B45: ='PLANILHA ORÇAMENTÁRIA'!D13 -> Barracão para almoxarifado área de 10.90m2, de chapa de compensado de 12mm e pontalete 8x8cm, piso cimentado e cobertura de telhas de fibrocimento de 6mm, incl. ponto de luz, conf. projeto (1 utilização)
N46: 10.90 | P46: =N46 -> 10.90
B47: QUANTIDADE | P47: =P46 -> 10.90 | Q47: ='PLANILHA ORÇAMENTÁRIA'!E13 -> m²
A49: ='PLANILHA ORÇAMENTÁRIA'!A14 -> 01.05 | B49: ='PLANILHA ORÇAMENTÁRIA'!D14 -> Refeitório com paredes de chapa de compens. 12mm e pontaletes 8x8cm, piso ciment. e cob. de telhas fibroc. 6mm, incl. ponto de luz e cx. de inspeção (cons. 1.21 m2/func./turno), conf. projeto (1 utilização)
N50: 14.00 | P50: =N50 -> 14.00
B51: QUANTIDADE | P51: =P50 -> 14.00 | Q51: ='PLANILHA ORÇAMENTÁRIA'!E14 -> m²
A53: ='PLANILHA ORÇAMENTÁRIA'!A15 -> 01.06 | B53: ='PLANILHA ORÇAMENTÁRIA'!D15 -> Reservatório de poliestileno de 1000 L, incl. suporte em madeira de 7x12cm e 8x7cm, elevado de 4m, conf. projeto (1 utilização)
J54: 1.00 | P54: =J54 -> 1.00
B55: QUANTIDADE | P55: =P54 -> 1.00 | Q55: ='PLANILHA ORÇAMENTÁRIA'!E15 -> und
A57: ='PLANILHA ORÇAMENTÁRIA'!A16 -> 01.07 | B57: ='PLANILHA ORÇAMENTÁRIA'!D16 -> Rede de água com padrão de entrada d'água diâm. 3/4", conf. espec. CESAN, incl. tubos e conexões para alimentação, distribuição, extravasor e limpeza, cons. o padrão a 25m, conf. projeto (1 utilização)
K58: 15.00 | P58: =K58 -> 15.00
B59: QUANTIDADE | P59: =P58 -> 15.00 | Q59: ='PLANILHA ORÇAMENTÁRIA'!E16 -> m
A61: ='PLANILHA ORÇAMENTÁRIA'!A17 -> 01.08 | B61: ='PLANILHA ORÇAMENTÁRIA'!D17 -> Rede de luz, incl. padrão entrada de energia trifás., cabo de ligação até barracões, quadro de distrib., disj. e chave de força (quando necessário), cons. 20m entre padrão entrada e QDG, conf. projeto (1 utilização)
K62: 15.00 | P62: =K62 -> 15.00
B63: QUANTIDADE | P63: =P62 -> 15.00 | Q63: ='PLANILHA ORÇAMENTÁRIA'!E17 -> m
A65: ='PLANILHA ORÇAMENTÁRIA'!A18 -> 01.09 | B65: ='PLANILHA ORÇAMENTÁRIA'!D18 -> Rede de esgoto, contendo fossa e filtro, inclusive tubos e conexões de ligação entre caixas, considerando distância de 25m, conforme projeto (1 utilização)
K66: 5.00 | P66: =K66 -> 5.00
B67: QUANTIDADE | P67: =P66 -> 5.00 | Q67: ='PLANILHA ORÇAMENTÁRIA'!E18 -> m
A69: ='PLANILHA ORÇAMENTÁRIA'!A21 -> 02 | B69: DEMOLIÇÃO E REGULARIZAÇÃO | BR69: 400 | BS69: + | BT69: 3.60 | BU69: 405 | BV69: + | BW69: 2.50
A70: ='PLANILHA ORÇAMENTÁRIA'!A22 -> 02.01 | B70: ='PLANILHA ORÇAMENTÁRIA'!D22 -> Retirada de meio-fio de concreto | BR70: 400 | BS70: + | BT70: 3.60 | BU70: 405 | BV70: + | BW70: 2.50
B71: Praça 01 | J71: 1.00 | K71: 7.61 | P71: =K71 -> 7.61
B72: Praça 01 | J72: 1.00 | K72: 0.77 | P72: =K72 -> 0.77
B73: Praça 01 | J73: 1.00 | K73: 4.14 | P73: 4.14
B74: Praça 01 | J74: 1.00 | K74: 0.58 | P74: 0.58
B75: Praça 01 | J75: 1.00 | K75: 0.62 | P75: 0.62
B76: Praça 01 | J76: 1.00 | K76: 15.76 | P76: 15.76
B77: Praça 01 | J77: 1.00 | K77: 0.63 | P77: 0.63
B78: Praça 01 | J78: 1.00 | K78: 1.56 | P78: 1.56
B79: Praça 01 | J79: 1.00 | K79: 0.33 | P79: 0.33
B80: Praça 01 | J80: 1.00 | K80: 9.40 | P80: 9.40
B81: Praça 02 | J81: 1.00 | K81: 0.85 | P81: 0.85
B82: Praça 02 | J82: 1.00 | K82: 15.85 | P82: 15.85
B83: Praça 02 | J83: 1.00 | K83: 0.81 | P83: 0.81
B84: Praça 02 | J84: 1.00 | K84: 4.17 | P84: 4.17
B85: Praça 02 | J85: 1.00 | K85: 0.72 | P85: 0.72
B86: Praça 02 | J86: 1.00 | K86: 16.22 | P86: 16.22
B87: Praça 02 | J87: 1.00 | K87: 0.64 | P87: 0.64
B88: Praça 02 | J88: 1.00 | K88: 4.49 | P88: 4.49
B89: Golas praça 01 | J89: 3.00 | K89: 2.00 | L89: 2.50 | P89: =((K89+L89)*2)*J89 -> 27.00
B90: Golas praça 02 | J90: 3.00 | K90: 2.00 | L90: 2.50 | P90: =((K90+L90)*2)*J90 -> 27.00
B91: Praça Coreto | J91: 1.00 | K91: 15.44 | P91: 15.44
B92: Praça Coreto | J92: 1.00 | K92: 3.66 | P92: 3.66
B93: Praça Coreto | J93: 1.00 | K93: 13.96 | P93: 13.96
B94: Praça Coreto | J94: 1.00 | K94: 1.83 | P94: 1.83
B95: Praça Coreto | J95: 1.00 | K95: 13.91 | P95: 13.91
B96: Golas praça Coreto | J96: 9.00 | K96: 1.00 | L96: 1.00 | P96: =((K96+L96)*2)*J96 -> 36.00
B97: QUANTIDADE | P97: =SUM(P71:P96) -> 223.95 | Q97: ='PLANILHA ORÇAMENTÁRIA'!E22 -> m | BR97: 500 | BS97: + | BT97: 5.00 | BU97: 505 | BV97: + | BW97: 15.65
A99: ='PLANILHA ORÇAMENTÁRIA'!A23 -> 02.02 | B99: ='PLANILHA ORÇAMENTÁRIA'!D23 -> Demolição manual de concreto simples (EMOP 05.001.001)
B100: Bancos - volume da do encosto e pé | J100: 19.00 | K100: 1.20 | L100: 1.00 | M100: 0.10 | O100: =J100*K100*L100*M100 -> 2.28 | P100: =O100 -> 2.28
B101: Bancos - volume do assento | J101: 19.00 | K101: 1.20 | L101: 0.50 | M101: 0.10 | O101: =J101*K101*L101*M101 -> 1.14 | P101: =O101 -> 1.14
B102: Praça Coreto- interno | J102: 1.00 | K102: 6.29 | L102: 0.20 | M102: 0.25 | O102: =J102*K102*L102*M102 -> 0.31 | P102: 0.31
B103: Praça Coreto- interno | J103: 1.00 | K103: 1.15 | L103: 0.20 | M103: 0.25 | O103: =J103*K103*L103*M103 -> 0.06 | P103: 0.06
B104: Praça Coreto- interno | J104: 1.00 | K104: 1.58 | L104: 0.20 | M104: 0.25 | O104: 0.08 | P104: 0.08
B105: Praça Coreto- interno | J105: 1.00 | K105: 11.70 | L105: 0.20 | M105: 0.25 | O105: 0.59 | P105: 0.59
B106: Praça Coreto- interno | J106: 1.00 | K106: 0.97 | L106: 0.20 | M106: 0.25 | O106: 0.05 | P106: 0.05
B107: Praça Coreto- interno | J107: 1.00 | K107: 1.00 | L107: 0.20 | M107: 0.25 | O107: 0.05 | P107: 0.05
B108: Praça Coreto- interno | J108: 1.00 | K108: 1.35 | L108: 0.20 | M108: 0.25 | O108: 0.07 | P108: 0.07
B109: Praça Coreto- interno | J109: 1.00 | K109: 4.64 | L109: 0.20 | M109: 0.25 | O109: 0.23 | P109: 0.23
B110: QUANTIDADE | P110: =SUM(P100:P109) -> 4.85 | Q110: ='PLANILHA ORÇAMENTÁRIA'!E23 -> m³ | BR110: 500 | BS110: + | BT110: 5.00 | BU110: 505 | BV110: + | BW110: 15.65
A112: ='PLANILHA ORÇAMENTÁRIA'!A24 -> 02.03 | B112: ='PLANILHA ORÇAMENTÁRIA'!D24 -> Remoção de pavimentação poliédrica
B113: área praça pequena | N113: 78.20 | P113: =N113 -> 78.20
B114: Descontos
B115: Gola de árvore | J115: 3.00 | K115: 2.00 | L115: 2.50 | N115: =-J115*K115*L115 -> -15.00 | P115: -15.00
B117: área praça pequena | N117: 93.83 | P117: =N117 -> 93.83
B118: Descontos
B119: Gola de árvore | J119: 3.00 | K119: 2.00 | L119: 2.50 | N119: =-J119*K119*L119 -> -15.00 | P119: =N119 -> -15.00
B121: área praça coreto | N121: 308.60 | P121: =N121 -> 308.60
B122: Descontos
B123: Gola de árvore | J123: 9.00 | K123: 1.00 | L123: 1.00 | N123: -9.00 | P123: =N123 -> -9.00
B124: Coreto | N124: -18.20 | P124: =N124 -> -18.20
B126: área rua (ampliação da praça) | N126: =380.54-308.6 -> 71.94 | P126: =N126 -> 71.94
B128: área rua (passagem de eletrodutos) | K128: =5.6+12.3 -> 17.90 | L128: 0.50 | N128: =K128*L128 -> 8.95 | P128: =N128 -> 8.95
B129: QUANTIDADE | P129: =SUM(P113:P128) -> 504.32 | Q129: ='PLANILHA ORÇAMENTÁRIA'!E24 -> m² | BR129: 500 | BS129: + | BT129: 5.00 | BU129: 505 | BV129: + | BW129: 15.65
A131: ='PLANILHA ORÇAMENTÁRIA'!A25 -> 02.04 | B131: ='PLANILHA ORÇAMENTÁRIA'!D25 -> Retirada de lixeira
J132: 4.00 | P132: 4.00
B133: QUANTIDADE | P133: =P132 -> 4.00 | Q133: ='PLANILHA ORÇAMENTÁRIA'!E25 -> und | BR133: 500 | BS133: + | BT133: 5.00 | BU133: 505 | BV133: + | BW133: 15.65
A135: ='PLANILHA ORÇAMENTÁRIA'!A26 -> 02.05 | B135: ='PLANILHA ORÇAMENTÁRIA'!D26 -> Retirada de mobiliário urbano
B136: Praça coreto - escorregador, balanço e orelhão | J136: 3.00 | P136: =J136 -> 3.00
B137: QUANTIDADE | P137: =P136 -> 3.00 | Q137: ='PLANILHA ORÇAMENTÁRIA'!E26 -> und | BR137: 500 | BS137: + | BT137: 5.00 | BU137: 505 | BV137: + | BW137: 15.65
A139: ='PLANILHA ORÇAMENTÁRIA'!A27 -> 02.06 | B139: ='PLANILHA ORÇAMENTÁRIA'!D27 -> Índice de preço para remoção de entulho decorrente da execução de obras (Classe A CONAMA - NBR 10.004 - Classe II-B), incluindo aluguel da caçamba, carga, transporte e descarga em área licenciada
B140: Remoção de Meio fio | K140: =P97 -> 223.95 | L140: 0.12 | M140: 0.30 | O140: =K140*L140*M140 -> 8.06 | P140: =O140 -> 8.06
B141: Demolição de concreto | O141: =P110 -> 4.85 | P141: =O141 -> 4.85
B142: Remoção de pavimentação | M142: 0.06 | N142: =P129 -> 504.32 | O142: =M142*N142 -> 30.26 | P142: =O142 -> 30.26
B143: QUANTIDADE | P143: =SUM(P140:P142) -> 43.18 | Q143: ='PLANILHA ORÇAMENTÁRIA'!E27 -> m³ | BR143: 500 | BS143: + | BT143: 5.00 | BU143: 505 | BV143: + | BW143: 15.65
A145: ='PLANILHA ORÇAMENTÁRIA'!A28 -> 02.07 | B145: ='PLANILHA ORÇAMENTÁRIA'!D28 -> Aterro com areia em áreas de calçada, inclusive fornecimento e adensamento
B146: Área praça coreto (com desconto coreto) | M146: 0.10 | N146: 308.60 | O146: -18.2 | P146: =(N146+O146)*M146 -> 29.04
B147: Área praça 01 | M147: 0.10 | N147: 78.20 | P147: =M147*N147 -> 7.82
B148: Área praça 02 | M148: 0.10 | N148: 93.83 | P148: =M148*N148 -> 9.38
B149: Área rua - Complemento praça | M149: 0.35 | N149: =380.54-308.6 -> 71.94 | P149: =M149*N149 -> 25.18
B150: QUANTIDADE | P150: =SUM(P146:P149) -> 71.42 | Q150: ='PLANILHA ORÇAMENTÁRIA'!E28 -> m³ | BR150: 500 | BS150: + | BT150: 5.00 | BU150: 505 | BV150: + | BW150: 15.65
A152: ='PLANILHA ORÇAMENTÁRIA'!A31 -> 03 | B152: ='PLANILHA ORÇAMENTÁRIA'!D31 -> LOCAÇÃO
A153: ='PLANILHA ORÇAMENTÁRIA'!A32 -> 03.01 | B153: ='PLANILHA ORÇAMENTÁRIA'!D32 -> Locação de obra com gabarito de madeira
B154: Praça coreto | N154: =380.54+18.2 -> 398.74 | P154: =N154 -> 398.74
B155: Desconto coreto | N155: -18.20 | P155: =N155 -> -18.20
B156: Praça 01 | N156: 93.83 | P156: =N156 -> 93.83
B157: Praça 02 | N157: 78.20 | P157: =N157 -> 78.20
B158: QUANTIDADE | P158: =SUM(P154:P157) -> 552.57 | Q158: ='PLANILHA ORÇAMENTÁRIA'!E32 -> m² | BR158: 500 | BS158: + | BT158: 5.00 | BU158: 505 | BV158: + | BW158: 15.65
A160: ='PLANILHA ORÇAMENTÁRIA'!A35 -> 04 | B160: ='PLANILHA ORÇAMENTÁRIA'!D35 -> ESCAVAÇÕES
A161: ='PLANILHA ORÇAMENTÁRIA'!A36 -> 04.01 | B161: ='PLANILHA ORÇAMENTÁRIA'!D36 -> Escavação manual em material de 1a. categoria, até 1.50 m de profundidade
B162: Praça coreto - rampa lado esquerdo | K162: =1.73+3.94+4.12 -> 9.79 | L162: 0.54 | M162: 0.35 | O162: =K162*L162*M162 -> 1.85 | P162: =O162 -> 1.85
B163: Praça coreto - rampa lado direito | K163: =1.35+3.92+5.11 -> 10.38 | L163: 0.54 | M163: 0.35 | O163: =K163*L163*M163 -> 1.96 | P163: =O163 -> 1.96
B164: Praça coreto - parte interna rampas | K164: =1.54+1.52+10.99+1.39+1.45 -> 16.89 | L164: 0.54 | M164: 0.35 | O164: =K164*L164*M164 -> 3.19 | P164: =O164 -> 3.19
B165: Passagem de eletrodutos | K165: 100.00 | L165: 0.50 | M165: 0.40 | O165: =K165*L165*M165 -> 20.00 | P165: =O165 -> 20.00
B166: QUANTIDADE | P166: =SUM(P162:P165) -> 27.00 | Q166: ='PLANILHA ORÇAMENTÁRIA'!E36 -> m² | BR166: 500 | BS166: + | BT166: 5.00 | BU166: 505 | BV166: + | BW166: 15.65
A168: ='PLANILHA ORÇAMENTÁRIA'!A39 -> 05 | B168: ='PLANILHA ORÇAMENTÁRIA'!D39 -> REATERRO E COMPACTAÇÃO
A169: ='PLANILHA ORÇAMENTÁRIA'!A40 -> 05.01 | B169: ='PLANILHA ORÇAMENTÁRIA'!D40 -> Reaterro de valas, exclusive compactação
B170: Praça coreto - rampa lado esquerdo | K170: =1.73+3.94+4.12 -> 9.79 | L170: 0.40 | M170: 0.35 | O170: =K170*L170*M170 -> 1.37 | P170: =O170 -> 1.37
B171: Praça coreto - rampa lado direito | K171: =1.35+3.92+5.11 -> 10.38 | L171: 0.40 | M171: 0.35 | O171: =K171*L171*M171 -> 1.45 | P171: =O171 -> 1.45
B172: Praça coreto - parte interna rampas | K172: =1.54+1.52+10.99+1.39+1.45 -> 16.89 | L172: 0.40 | M172: 0.35 | O172: =K172*L172*M172 -> 2.36 | P172: =O172 -> 2.36
B173: Reaterro escavação eletrodutos | K173: 100.00 | L173: 0.50 | M173: 0.40 | O173: =K173*L173*M173 -> 20.00 | P173: =O173 -> 20.00
B174: Desconto envelopamento | K174: 100.00 | L174: 0.25 | M174: 0.25 | O174: =-(K174*L174*M174) -> -6.25 | P174: =O174 -> -6.25
B175: QUANTIDADE | P175: =SUM(P170:P174) -> 18.94 | Q175: ='PLANILHA ORÇAMENTÁRIA'!E40 -> m³ | BR175: 500 | BS175: + | BT175: 5.00 | BU175: 505 | BV175: + | BW175: 15.65
A177: ='PLANILHA ORÇAMENTÁRIA'!A43 -> 06 | B177: ='PLANILHA ORÇAMENTÁRIA'!D43 -> ALVENARIA ESTRUTURAL
A178: ='PLANILHA ORÇAMENTÁRIA'!A44 -> 06.01 | B178: ='PLANILHA ORÇAMENTÁRIA'!D44 -> Alvenaria de blocos de concreto estrut. (14x19x39cm) cheios, c/ resist. mín. compr. 15MPa, assentados c/ arg. de cimento e areia no traço 1:4, esp. juntas 10mm e esp. da parede s/ revest. 14cm
B179: Praça coreto - rampa lado esquerdo | K179: =1.73+3.94+4.12 -> 9.79 | M179: =0.8/2 -> 0.40 | N179: =K179*M179 -> 3.92 | P179: =N179 -> 3.92
B180: Praça coreto - rampa lado direito | K180: =1.35+3.92+5.11 -> 10.38 | M180: =0.8/2 -> 0.40 | N180: =K180*M180 -> 4.15 | P180: =N180 -> 4.15
B181: Praça coreto - parte interna rampas | K181: =1.54+1.52+10.99+1.39+1.45 -> 16.89 | M181: 0.80 | N181: =K181*M181 -> 13.51 | P181: =N181 -> 13.51
B182: QUANTIDADE | P182: =SUM(P179:P181) -> 21.58 | Q182: ='PLANILHA ORÇAMENTÁRIA'!E44 -> m² | BR182: 500 | BS182: + | BT182: 5.00 | BU182: 505 | BV182: + | BW182: 15.65
A184: ='PLANILHA ORÇAMENTÁRIA'!A47 -> 07 | B184: DRENAGEM
A185: ='PLANILHA ORÇAMENTÁRIA'!A48 -> 07.01 | B185: ='PLANILHA ORÇAMENTÁRIA'!D48 -> Remoção e reassentamento de blocos de concreto, inclusive perdas
B186: Corpo BSTC 0,40m | K186: 22.00 | L186: 1.50 | P186: =K186*L186 -> 33.00
B187: Corpo BSTC 0,30m | K187: 16.00 | L187: 1.50 | P187: =K187*L187 -> 24.00
B188: QUANTIDADE | P188: =SUM(P186:P187) -> 57.00 | Q188: ='PLANILHA ORÇAMENTÁRIA'!E48 -> m² | BR188: 500 | BS188: + | BT188: 5.00 | BU188: 505 | BV188: + | BW188: 15.65
A190: ='PLANILHA ORÇAMENTÁRIA'!A49 -> 07.02 | B190: ='PLANILHA ORÇAMENTÁRIA'!D49 -> Corpo BSTC diâmetro 0,30 m C.S. PB inclusive escavação, reaterro e transporte do tubo
J191: 3.00 | P191: =J191 -> 3.00
J192: 1.00 | P192: =J192 -> 1.00
J193: 2.30 | P193: 2.30
J194: 5.00 | P194: 5.00
J195: 10.00 | P195: 10.00
J196: 2.80 | P196: 2.80
J197: 2.60 | P197: 2.60
J198: 13.00 | P198: 13.00
B199: QUANTIDADE | P199: =SUM(P191:P198) -> 39.70 | Q199: ='PLANILHA ORÇAMENTÁRIA'!E49 -> m | BR199: 500 | BS199: + | BT199: 5.00 | BU199: 505 | BV199: + | BW199: 15.65
A201: ='PLANILHA ORÇAMENTÁRIA'!A50 -> 07.03 | B201: ='PLANILHA ORÇAMENTÁRIA'!D50 -> Corpo BSTC diâmetro 0,40 m C.S. PB inclusive escavação, reaterro e transporte do tubo
J202: 10.00 | P202: 10.00
J203: 12.00 | P203: 12.00
B204: QUANTIDADE | P204: =SUM(P202:P203) -> 22.00 | Q204: ='PLANILHA ORÇAMENTÁRIA'!E50 -> m | BR204: 500 | BS204: + | BT204: 5.00 | BU204: 505 | BV204: + | BW204: 15.65
A206: ='PLANILHA ORÇAMENTÁRIA'!A51 -> 07.04 | B206: ='PLANILHA ORÇAMENTÁRIA'!D51 -> Caixa ralo em blocos pré-moldados e grelha articulada em FFA em Vias Urbanas
J207: 7.00 | P207: =J207 -> 7.00
B208: QUANTIDADE | P208: =P207 -> 7.00 | Q208: ='PLANILHA ORÇAMENTÁRIA'!E51 -> und | BR208: 500 | BS208: + | BT208: 5.00 | BU208: 505 | BV208: + | BW208: 15.65
A210: ='PLANILHA ORÇAMENTÁRIA'!A52 -> 07.05 | B210: ='PLANILHA ORÇAMENTÁRIA'!D52 -> Trincheira drenante em concreto armado, incluíndo grelhas FOFO, escavação e reaterro
K211: 2.60 | P211: =K211 -> 2.60
B212: QUANTIDADE | P212: =P211 -> 2.60 | Q212: ='PLANILHA ORÇAMENTÁRIA'!E52 -> m | BR212: 500 | BS212: + | BT212: 5.00 | BU212: 505 | BV212: + | BW212: 15.65
A214: ='PLANILHA ORÇAMENTÁRIA'!A53 -> 07.06 | B214: ='PLANILHA ORÇAMENTÁRIA'!D53 -> Poço de visita para BSTC diâm. 0,40 m em blocos de concreto, em Vias Urbanas
J215: 2.00 | P215: =J215 -> 2.00
B216: QUANTIDADE | P216: =P215 -> 2.00 | Q216: ='PLANILHA ORÇAMENTÁRIA'!E53 -> und | BR216: 500 | BS216: + | BT216: 5.00 | BU216: 505 | BV216: + | BW216: 15.65
BR217: 500 | BS217: + | BT217: 5.00 | BU217: 505 | BV217: + | BW217: 15.65
A218: ='PLANILHA ORÇAMENTÁRIA'!A56 -> 08 | B218: ='PLANILHA ORÇAMENTÁRIA'!D56 -> LASTRO DE CONTRAPISO
A219: ='PLANILHA ORÇAMENTÁRIA'!A57 -> 08.01 | B219: ='PLANILHA ORÇAMENTÁRIA'!D57 -> Lastro impermeabilizado de concreto não estrutural, espessura de 6 cm
B220: Praça coreto - rampa lado esquerdo | K220: =1.73+3.94+4.12 -> 9.79 | L220: 0.54 | N220: =K220*L220 -> 5.29 | P220: =N220 -> 5.29
B221: Praça coreto - rampa lado direito | K221: =1.35+3.92+5.11 -> 10.38 | L221: 0.54 | N221: =K221*L221 -> 5.61 | P221: =N221 -> 5.61
B222: Praça coreto - parte interna rampas | K222: =1.54+1.52+10.99+1.39+1.45 -> 16.89 | L222: 0.54 | N222: =K222*L222 -> 9.12 | P222: =N222 -> 9.12
B223: QUANTIDADE | P223: =SUM(P220:P222) -> 20.01 | Q223: ='PLANILHA ORÇAMENTÁRIA'!E57 -> m² | BR223: 500 | BS223: + | BT223: 5.00 | BU223: 505 | BV223: + | BW223: 15.65
A225: ='PLANILHA ORÇAMENTÁRIA'!A60 -> 09 | B225: PAVIMENTAÇÃO
A226: ='PLANILHA ORÇAMENTÁRIA'!A61 -> 09.01 | B226: ='PLANILHA ORÇAMENTÁRIA'!D61 -> Lastro de concreto não estrutural, espessura de 6 cm
B227: Piso argamassa alta resistência tipo granilite anti-derrapante | N227: =P245 -> 192.85 | P227: =N227 -> 192.85
B228: Piso em ladrilho hidraulico | N228: =P359+P367 -> 53.42 | P228: =N228 -> 53.42
B229: QUANTIDADE | P229: =SUM(P227:P228) -> 246.27 | Q229: ='PLANILHA ORÇAMENTÁRIA'!E61 -> m² | BR229: 500 | BS229: + | BT229: 5.00 | BU229: 505 | BV229: + | BW229: 15.65
A231: ='PLANILHA ORÇAMENTÁRIA'!A62 -> 09.02 | B231: ='PLANILHA ORÇAMENTÁRIA'!D62 -> Piso argamassa alta resistência tipo granilite ou equiv de qualidade comprovada, esp de 10mm, com juntas plástica em quadros de 1m, na cor natural, com acabamento anti-derrapante mecanizado, inclusive regularização e=3.0cm
... 245 more rows

Sheet CRONOGRAMA
B1: PREFEITURA MUNICIPAL DE JOÃO NEIVA
B2: CRONOGRAMA FÍSICO-FINANCEIRO
B3: OBRA: REFORMA DAS PRAÇAS DE CAVALINHO
B4: LOCAL:CAVALINHO - JOÃO NEIVA/ES | M4: I0= nov/12 | N4: I1= jul/13 | P4: Reajuste R=1+(I1- I0)/I0
B5: ORÇAMENTISTA: JULIANA MARETO AMBROZIM CREA:ES-18536/D | D5: REVISÃO DO ORÇAMENTO: THAIS BAPTISTA MENELLI CAU/ES A181604-7 / BRUNA PEROVANO SIRTULI CAU/ES A187736-4
A6: ITEM | B6: DESCRIÇÃO | D6: VALORES R$ | E6: PERÍODO (MESES)
E7: 1 | F7: 2 | G7: 3 | H7: 4 | I7: 5 | J7: 6 | K7: 7 | L7: 12
A8: 01 | B8: CANTEIRO DE OBRAS | C8: Físico (%) | D8: =D9/D38 -> 20.71% | E8: =E9/D9 -> 100.00%
C9: Financeiro (R$) | D9: ='PLANILHA ORÇAMENTÁRIA'!I19 -> R$ 93,841.90 | E9: =D9 -> R$ 93,841.90 | F9: 0 | G9: 0 | H9: 0 | I9: 0 | J9: 0 | K9: 0 | L9: 0
A10: 02 | B10: DEMOLIÇÃO E REGULARIZAÇÃO | C10: Físico (%) | D10: =D11/D38 -> 8.47% | F10: =F11/D11 -> 100.00%
C11: Financeiro (R$) | D11: ='PLANILHA ORÇAMENTÁRIA'!I29 -> R$ 38,401.69 | F11: =D11 -> R$ 38,401.69 | G11: 0 | H11: 0 | I11: 0 | J11: 0 | K11: 0 | L11: 0
A12: 03 | B12: LOCAÇÃO | C12: Físico (%) | D12: =D13/D38 -> 1.80% | F12: =F13/D13 -> 100.00%
C13: Financeiro (R$) | D13: ='PLANILHA ORÇAMENTÁRIA'!I33 -> R$ 8,166.98 | F13: =D13 -> R$ 8,166.98 | G13: 0 | H13: 0 | I13: 0 | J13: 0 | K13: 0 | L13: 0
A14: 04 | B14: ESCAVAÇÕES | C14: Físico (%) | D14: =D15/D38 -> 0.41% | F14: =F15/D15 -> 100.00%
C15: Financeiro (R$) | D15: ='PLANILHA ORÇAMENTÁRIA'!I37 -> R$ 1,873.83 | F15: =D15 -> R$ 1,873.83 | G15: 0 | H15: 0 | I15: 0 | J15: 0 | K15: 0 | L15: 0
A16: 05 | B16: REATERRO E COMPACTAÇÃO | C16: Físico (%) | D16: =D17/D38 -> 0.04% | G16: =G17/D17 -> 100.00%
C17: Financeiro (R$) | D17: ='PLANILHA ORÇAMENTÁRIA'!I41 -> R$ 181.81 | G17: =D17 -> R$ 181.81 | H17: 0 | I17: 0 | J17: 0 | K17: 0 | L17: 0
A18: 06 | B18: ALVENARIA ESTRUTURAL | C18: Físico (%) | D18: =D19/D38 -> 0.82% | G18: =G19/D19 -> 100.00%
C19: Financeiro (R$) | D19: ='PLANILHA ORÇAMENTÁRIA'!I45 -> R$ 3,701.83 | G19: =D19 -> R$ 3,701.83 | H19: 0 | I19: 0 | J19: 0 | K19: 0 | L19: 0
A20: 07 | B20: DRENAGEM | C20: Físico (%) | D20: =D21/D38 -> 9.79% | G20: =G21/D21 -> 30.00% | H20: =H21/D21 -> 30.00% | I20: =I21/D21 -> 40.00%
C21: Financeiro (R$) | D21: ='PLANILHA ORÇAMENTÁRIA'!I54 -> R$ 44,343.28 | G21: =D21*0.3 -> 13,302.98 | H21: =D21*0.3 -> 13,302.98 | I21: =D21*0.4 -> 17,737.31 | J21: 0 | K21: 0 | L21: 0
A22: 08 | B22: LASTRO DE CONTRAPISO | C22: Físico (%) | D22: =D23/D38 -> 0.36% | G22: =G23/D23 -> 100.00%
C23: Financeiro (R$) | D23: ='PLANILHA ORÇAMENTÁRIA'!I58 -> R$ 1,619.40 | G23: =D23 -> R$ 1,619.40 | L23: 0
A24: 09 | B24: PAVIMENTAÇÃO | C24: Físico (%) | D24: =D25/D38 -> 20.33% | H24: =H25/D25 -> 25.00% | I24: =I25/D25 -> 25.00% | J24: =J25/D25 -> 50.00%
C25: Financeiro (R$) | D25: ='PLANILHA ORÇAMENTÁRIA'!I67 -> R$ 92,137.71 | H25: =D25*0.25 -> 23,034.43 | I25: =D25*0.25 -> 23,034.43 | J25: =D25*0.5 -> 46,068.86 | L25: 0
A26: 10 | B26: EQUIPAMENTOS | C26: Físico (%) | D26: =D27/D38 -> 5.99% | K26: =K27/D27 -> 100.00% | L26: 25.00%
C27: Financeiro (R$) | D27: ='PLANILHA ORÇAMENTÁRIA'!I74 -> R$ 27,156.50 | K27: =D27 -> R$ 27,156.50 | L27: 2,091.41
A28: 11 | B28: PAISAGISMO | C28: Físico (%) | D28: =D29/D38 -> 1.82% | K28: =K29/D29 -> 100.00% | L28: 50.00%
C29: Financeiro (R$) | D29: ='PLANILHA ORÇAMENTÁRIA'!I82 -> R$ 8,254.07 | K29: =D29 -> R$ 8,254.07 | L29: 2,409.89
A30: 12 | B30: INSTALAÇÕES ELÉTRICAS | C30: Físico (%) | D30: =D31/D38 -> 27.87% | G30: =G31/D31 -> 25.00% | H30: =H31/D31 -> 25.00% | I30: =I31/D31 -> 25.00% | J30: =J31/D31 -> 25.00% | L30: 10.00%
C31: Financeiro (R$) | D31: ='PLANILHA ORÇAMENTÁRIA'!I95 -> R$ 126,274.81 | G31: =D31*0.25 -> 31,568.70 | H31: =D31*0.25 -> 31,568.70 | I31: =D31*0.25 -> 31,568.70 | J31: =D31*0.25 -> 31,568.70 | L31: 2,916.48
A32: 13 | B32: REVESTIMENTO EMPREGANDO ARGAMASSA DE CIMENTO, CAL E AREIA | C32: Físico (%) | D32: =D33/D38 -> 0.81% | G32: =G33/D33 -> 100.00% | L32: 100.00%
C33: Financeiro (R$) | D33: ='PLANILHA ORÇAMENTÁRIA'!I100 -> R$ 3,650.91 | F33: 0 | G33: =D33 -> R$ 3,650.91 | H33: 0 | I33: 0 | J33: 0 | K33: 0 | L33: 443.24
A34: 14 | B34: PINTURA | C34: Físico (%) | D34: =D35/D38 -> 0.59% | K34: =K35/D35 -> 100.00% | L34: 100.00%
C35: Financeiro (R$) | D35: ='PLANILHA ORÇAMENTÁRIA'!I105 -> R$ 2,675.21 | F35: 0 | G35: 0 | H35: 0 | I35: 0 | J35: 0 | K35: =D35 -> R$ 2,675.21 | L35: 443.24
A36: 15 | B36: LIMPEZA | C36: Físico (%) | D36: =D37/D38 -> 0.19% | K36: =K37/D37 -> 100.00% | L36: 100.00%
C37: Financeiro (R$) | D37: ='PLANILHA ORÇAMENTÁRIA'!I109 -> R$ 856.16 | F37: 0 | G37: 0 | H37: 0 | I37: 0 | J37: 0 | K37: =D37 -> R$ 856.16 | L37: 443.24
B38: Total Parcial (%) | D38: =D9+D11+D13+D15+D17+D19+D21+D23+D25+D27+D29+D31+D33+D35+D37 -> R$ 453,136.09 | E38: =E40/$D$38 -> 20.71% | F38: =F40/$D$38 -> 10.69% | G38: =G40/$D$38 -> 11.92% | H38: 14.99% | I38: 15.96% | J38: 17.13% | K38: 8.59% | L38: 3.97%
B39: Total Acumulado (%) | E39: =E41/$D$38 -> 20.71% | F39: =E39+F38 -> 31.40% | G39: =F39+G38 -> 43.32% | H39: 58.31% | I39: 74.27% | J39: 91.41% | K39: 100.00% | L39: 21.02%
B40: Total Financeiro (R$) | E40: =E9+E11+E13+E15+E17+E19+E21+E23+E25+E27+E29+E31+E33+E35+E37 -> R$ 93,841.90 | F40: =F9+F11+F13+F15+F17+F19+F21+F23+F25+F27+F29+F31+F33+F35+F37 -> R$ 48,442.50 | G40: R$ 54,025.64 | H40: R$ 67,906.11 | I40: R$ 72,340.44 | J40: =J9+J11+J13+J15+J17+J19+J21+J23+J25+J27+J29+J31+J33+J35+J37 -> R$ 77,637.56 | K40: =K9+K11+K13+K15+K17+K19+K21+K23+K25+K27+K29+K31+K33+K35+K37 -> R$ 38,941.94 | L40: 7,861.02
B41: Total Acumulado (R$) | E41: =E40 -> R$ 93,841.90 | F41: =E41+F40 -> R$ 142,284.40 | G41: =F41+G40 -> R$ 196,310.04 | H41: R$ 264,216.15 | I41: R$ 336,556.59 | J41: R$ 414,194.15 | K41: R$ 453,136.09 | L41: 197,824.39

Sheet COTAÇÕES
B1: PREFEITURA MUNICIPAL DE JOÃO NEIVA
B2: COTAÇÕES
B3: OBRA: REFORMA DAS PRAÇAS DE CAVALINHO
B4: LOCAL: JOÃO NEIVA-ES
B5: REVISÃO DO ORÇAMENTO: THAIS BAPTISTA MENELLI CAU/ES A181604-7 / BRUNA PEROVANO SIRTULI CAU/ES A187736-4
A6: NÚMERO | B6: ITEM PLANILHA | C6: DESCRIÇÃO | D6: FORNECEDOR 1 | E6: CONTATO | F6: PREÇO | G6: FRETE | H6: DATA | I6: FORNECEDOR 2 | J6: CONTATO | K6: PREÇO | L6: FRETE | M6: DATA | N6: FORNECEDOR 3 | O6: CONTATO | P6: PREÇO | Q6: FRETE | R6: DATA | S6: MÉDIA DOS PREÇOS | T6: MÉDIA DOS FRETES | U6: PREÇO | V6: OBSERVAÇÕES
A8: 01 | B8: ='PLANILHA ORÇAMENTÁRIA'!A71 -> 10.2 | C8: Lixeira seletiva 50 litros verde | D8: Proposto | E8: https://www.proposto.com.br/42702-lixeira-coleta-seletiva-50-litros-plstico-vermelho-p10920?utm_source=google&utm_medium=cpc&utm_campaign=lojavirtual&pp=/44.769&gclid=Cj0KCQiAtICdBhCLARIsALUBFcGdjKmGTWKn4tZ6ViVanqUOatBdyixHk7lJBocyI-f3FUXrnF8Hiw4aAtrBEALw_wcB | F8: R$ 170.81 | G8: R$ 152.80 | H8: 2023-04-13 | I8: Americanas | J8: https://www.americanas.com.br/produto/5159860272?pfm_carac=aproveite%20e%20veja%20tamb%C3%A9m&pfm_index=2&pfm_page=product&pfm_pos=item_page.rr1&pfm_type=vit_recommendation&DCSext.recom=RR_item_page.rr1-mars_MarsClickCP%3AP%3A15%3A%3Aads%3Dtrue%3AorderAdsTest%3Dmotor_high_ads&nm_origem=rec_item_page.rr1-mars_MarsClickCP%3AP%3A15%3A%3Aads%3Dtrue%3AorderAdsTest%3Dmotor_high_ads&nm_ranking_rec=2&offerId=628e3269234ca7e6fda3956f&cor=Verde&tamanho=Grande&condition=NEW | K8: R$ 297.08 | L8: R$ 0.00 | M8: 2023-04-13 | N8: Madeira Madeira | O8: https://www.madeiramadeira.com.br/lixeira-individual-para-coleta-seletiva-papeleira-50-litros-4607733.html?origem=pla-4607733&utm_source=google&utm_medium=cpc&utm_content=lixeiras-de-calcada-4678&utm_term=&utm_id=17817035511&gclid=Cj0KCQiAtICdBhCLARIsALUBFcFPzZxEyrAwbuIKnAcpKSUx2f_GgXqZPofY1hGida7GtXDppEwahBsaAuA3EALw_wcB | P8: R$ 191.14 | Q8: R$ 187.33 | R8: 2023-04-13 | S8: =(F8+K8+P8)/3 -> R$ 219.68 | T8: =(G8+L8+Q8)/3 -> R$ 113.38 | U8: =S8+T8/3 -> R$ 257.47 | V8: O frete foi dividido pela quantidade total do orçamento
A9: 02 | B9: ='PLANILHA ORÇAMENTÁRIA'!A78 -> 11.2 | C9: Vedélia (muda) | D9: Horto Express | E9: https://www.hortoexpress.com.br/vedelia-caixa-com-15-unidades | F9: =39.9/15 -> R$ 2.66 | G9: R$ 0.00 | H9: 2023-04-13 | I9: Vivo Plantas | J9: https://vivoplantas.com.br/produto/vedelia/ | K9: =37.5/15 -> R$ 2.50 | L9: R$ 0.00 | M9: 2023-04-13 | N9: Tirol Plantas | O9: https://tirolplantas.com/product/sphagneticola-trilobata-vedelia-caixa-com-15-mudas/ | P9: =42.9/15 -> R$ 2.86 | Q9: R$ 0.00 | R9: 2023-04-13 | S9: R$ 2.67 | T9: R$ 0.00 | U9: =S9+T9 -> R$ 2.67 | V9: Não foi considerado frete
A10: 03 | B10: ='PLANILHA ORÇAMENTÁRIA'!A79 -> 11.3 | C10: Clúsia fluminenses (muda) | D10: AMK Jardinagem e paisagismo | E10: https://www.lojaamk.com.br/muda-de-clusia-pronta-para-plantio-10-cm-a-40-cm?parceiro=8023 | F10: R$ 20.50 | G10: R$ 0.00 | H10: 2023-04-13 | I10: Floralondrina | J10: https://www.floralondrina.com.br/muda-de-clusia-clusia-fluminensis/ | K10: R$ 22.90 | L10: R$ 0.00 | M10: 2023-04-13 | N10: Garden Citrus | O10: https://www.gardencitrus.com.br/muda-de-clusia-verde?utm_source=google&utm_medium=Shopping&utm_campaign=muda-de-clusia-verde&inStock | P10: R$ 39.99 | Q10: R$ 0.00 | R10: 2023-04-13 | S10: R$ 27.80 | T10: R$ 0.00 | U10: =S10+T10 -> R$ 27.80 | V10: Não foi considerado frete
A11: 04 | B11: ='PLANILHA ORÇAMENTÁRIA'!A80 -> 11.4 | C11: Ixora Coral (muda) | D11: Orquidário 4 Estações | E11: https://www.orquidario4e.com.br/ixora-vermelha?srsltid=AYJSbAeXPPT2UQ0XXMR06RB0HnnwwvKxxOM7rxLCkq1ioBfoD_fSaPYTxHg | F11: R$ 9.90 | G11: R$ 0.00 | H11: 2023-04-13 | I11: Magalu | J11: https://www.magazineluiza.com.br/mudas-de-ixora-com-15cm-a-20cm-cerca-viva-florida-vermelha-davanssi-produtos-naturais/p/gh1682744f/de/fpta/?&seller_id=bellamocashop | K11: R$ 16.80 | L11: R$ 0.00 | M11: 2023-04-13 | N11: Jardeen | O11: https://jardeen.com.br/muda-de-ixora.html | P11: R$ 16.00 | Q11: R$ 0.00 | R11: 2023-04-13 | S11: R$ 14.23 | T11: R$ 0.00 | U11: =S11+T11 -> R$ 14.23 | V11: Não foi considerado frete
A12: 05 | B12: ='PLANILHA ORÇAMENTÁRIA'!A81 -> 11.5 | C12: Pingo de ouro (muda) | D12: Magalu | E12: https://www.magazineluiza.com.br/pingo-de-ouro-mastogarden/p/kkbfajeh9h/md/bric/?seller_id=mastodonte | F12: R$ 5.00 | G12: R$ 0.00 | H12: 2023-04-13 | I12: Plantei | J12: https://www.plantei.com.br/muda-de-pingo-de-ouro?parceiro=3092 | K12: R$ 4.90 | L12: R$ 0.00 | M12: 2023-04-13 | N12: Garden Arts | O12: https://www.gardenarts.com.br/pingo-de-ouro-10-mudas-no-saquinho | P12: =28/10 -> R$ 2.80 | Q12: R$ 0.00 | R12: 2023-04-13 | S12: R$ 4.23 | T12: R$ 0.00 | U12: =S12+T12 -> R$ 4.23 | V12: Não foi considerado frete

Sheet BDI
C2: PREFEITURA MUNICIPAL DE JOÃO NEIVA
C3: COMPOSIÇÃO BDI | H3: TABELAS DE REFERÊNCIA:
C4: OBRA:REFORMA DAS PRAÇAS DE CAVALINHO | F4: L. SOCIAIS: | G4: 157.27% | H4: DER-ES EDIFICAÇÕES - FEV/2023
C5: LOCAL: JOÃO NEIVA-ES | F5: BDI: | G5: 34.71%
C6: REVISÃO DO ORÇAMENTO: THAIS BAPTISTA MENELLI CAU/ES A181604-7 / BRUNA PEROVANO SIRTULI CAU/ES A187736-4 | H6: DER-ES RODOVIAS SEM DESONERAÇÃO - JUL/2022
E9: Para Serviços
C10: GRUPO A
C11: Administração Central | E11: 4.06%
C12: Total Grupo A | E12: =E11 -> 4.06%
C13: GRUPO B
C14: Administração Local | E14: 8.19%
C15: Total Grupo B | E15: =E14 -> 8.19%
C16: GRUPO C
C17: Impostos/Tributos
C18: ISS | E18: 5.00%
C19: PIS | E19: 0.65%
C20: COFINS | E20: 3.00%
C21: CPRB | E21: 0.00%
C22: Total Grupo C | E22: =SUM(E18:E21) -> 8.65%
C23: GRUPO D
C24: Custos Financeiros | E24: 0.61%
C25: Total Grupo D | E25: =E24 -> 0.61%
C26: GRUPO E
C27: Seguros / Garantia | E27: 0.50%
C28: Riscos | E28: 0.50%
C29: Total Grupo E | E29: =SUM(E27:E28) -> 1.00%
C30: GRUPO F
C31: Lucro | E31: 8.00%
C32: Total Grupo F | E32: =E31 -> 8.00%
C34: BDI Total | E34: =(((1+E25)*(1+E12+E15+E29)*(1+E32)/(1-E22))-1) -> 34.71%
B36: OBS:
B38: 1 | C38: - A fórmula para cálculo da taxa a ser acrescida aos custos diretos de um
C39: empreendimento a título de Benefícios e Despesas Indiretas é:
C40: BDI = {(1 + D)*(1 + A+B+E)*(1 + F)} -1, onde:
C41: (1 – C)
C42: A = ADMINISTRAÇÃO CENTRAL;
C43: B = ADMINISTRAÇÃO LOCAL;
C44: C = ISS + PIS + COFINS+INSS;
C45: D = CUSTOS FINANCEIROS;
C46: E = RISCOS, SEGUROS E GARANTIAS;
C47: F = BENEFÍCIO/LUCRO;
B48: JUSTIFICATIVA MODIFICAÇÃO DOS PERCENTUAIS:
B49: ADMINISTRAÇÃO LOCAL: FOI CONSIDERADO PERCENTUAL INFERIOR AO DA TABELA DE TAXA DE BDI PADRÃO APLICÁVEL, CONFORME RESOLUÇÃO Nº329, DE 24 DE SETEMBRO DE 2019, VISANDO NÃO ULTRAPASSAR O PERCENTUAL DO BDI TOTAL, CONSIDERANDO QUE HOUVE A NECESSIDADE DE AUMENTO DO ISSQN, DE ACORDO COM A LEI MUNICIPAL N° 3.203, DE 27 DE SETEMBRO DE 2019
B50: ISSQN: FOI CONSIDERADO PERCENTUAL SUPERIOR AO DA TABELA DE TAXA DE BDI PADRÃO APLICÁVEL, CONFORME RESOLUÇÃO Nº329, DE 24 DE SETEMBRO DE 2019, CONSIDERANDO QUE HOUVE A NECESSIDADE DE AUMENTO DO ISSQN, DE ACORDO COM A LEI MUNICIPAL N° 3.203, DE 27 DE SETEMBRO DE 2019.
B51: 2 | C51: - Discriminação do BDI
C53: A – Despesas financeiras:
C54: são aquelas decorrentes do custo do capital de giro para fazer frente às despesas realizadas antes do efetivo recebimento das devidas receitas. Foi apropriada por estimativa com base na média proposta no ACÓRDÃO Nº 2.622/2013, PLENÁRIO de 25 set.2013.
C58: B – Administração Central:
C59: são as despesas relativas à manutenção de parcela do custo do escritório central da empresa, tais como: instalações do imóvel/sede (custo de propriedade ou de locação de imóveis); aquisição e manutenção dos equipamentos da sede (computadores, ar condicionado, veículos e correlatos); despesas administrativas (secretária, vigilante, auxiliar de escritório, contínuo, assessorias tercerizadas - ex. contadoria); despesas com consumo (água, luz, telefone, material para escritório, material para limpeza, alimentos, etc). Foi apropriada por estimativa com base na média proposta noACÓRDÃO Nº 2.622/2013, PLENÁRIO de 25 set.2013.
C60: C – Benefício/Lucro:
C61: é a parcela que contempla a remuneração do construtor, definidos com base em valor percentual sobre o total dos custos diretos e despesas indiretas, excluídas aquelas referentes às parcelas tributárias. A taxa adotada como benefício deve ser entendida como uma provisão de onde será retirado o lucro do construtor, após desconto de todos os encargos decorrentes de inúmeras incertezas que podem ocorrer durante as obras, difíceis de serem mensuradas no seu conjunto com base no ACÓRDÃO Nº 2.622/2013, PLENÁRIO de 25 set.2013.
C63: D – Riscos Imprevistos, Garantias e Seguros:
C64: valores para cobertura de despesas imprevisíveis e os seguros e garantias estabelecidos no Projeto Básico e orientação contante no ACÓRDÃO Nº 2.622/2013, PLENÁRIO de 25 set.2013.
C65: E – Valores Relativos aos Tributos:
C66: – Impostos sobre serviços de qualquer natureza – ISS, é imposto de competência municipal, consoante art. 156, inciso III, da Constituição Federal. Alíquota de 4% sobre o valor total da nota fiscal.(Os 4% consideram a redução de 20% da base de cálculo, conforme previsto no art. 9 do Decreto 13314/2007 e Lei Municipal 6075/2003).
C67: – Contribuição para o Programa de Integração Social – PIS. A taxa do PIS, definida pelos Decretos-Lei nº 2.445 e 2.449/88, é de 0,65% sobre a receita operacional bruta.
C68: – Contribuição para o Programa de Financiamento da Seguridade Social – COFINS, definida pela Lei 9.718/98, é de 3%, sobre a receita operacional bruta.
C69: – Contribuição Patronal sobre a Receita Bruta, definida pela Lei 13.161, de 31 de agosto de 2015, é de 4,5%, sobre a receita operacional bruta.

Sheet LS
C2: PREFEITURA MUNICIPAL DE JOÃO NEIVA
C3: COMPOSIÇÃO LEIS SOCIAIS
C4: OBRA: REFORMA DAS PRAÇAS DE CAVALINHO
C5: LOCAL: JOÃO NEIVA-ES
B7: GRUPO A - Encargos Sociais Básicos | E7: % IOPES
B8: A.1 | C8: INSS (Art. 22 da Lei 8.212/91) | E8: 20.00%
B9: A.2 | C9: FGTS (Art. 27 do Decreto 99.684/90) | E9: 8.00%
B10: A.3 | C10: SESI/SESC (Lei 8.029/90 e Lei 8.036/90) | E10: 1.80%
B11: A.4 | C11: SENAI/SENAC (Lei 8.029/90 e Decreto-Lei 6246/44) | E11: 1.30%
B12: A.5 | C12: SEBRAE (já considerado no item A.3 e A.4) | E12: -
B13: A.6 | C13: INCRA (Lei 2.613/55 e Decreto 1.146/70) | E13: 0.20%
B14: A.7 | C14: SALÁRIO-EDUCAÇÃO (Decreto 87.043/82) | E14: 2.50%
B15: A.8 | C15: SEGURO ACIDENTE DO TRABALHO (Lei 8.212/91 e Decreto 3.048/99) | E15: 3.00%
B16: A.9 | C16: SECONCI/Medicina do Trabalho | E16: 1.00%
B17: TOTAL GRUPO A | E17: =SUM(E8:E16) -> 37.80%
B18: GRUPO B - Encargos Sociais que recebem a incidência do grupo A | E18: % IOPES
B19: B.1 | C19: Descanso Semanal Remunerado (Art. 66 da CLT e Art. 7º da CF/88) | E19: 17.52%
B20: B.2 | C20: Feriados (Art. 70 da CLT e Lei 605/49) | E20: 3.91%
B21: B.3 | C21: Auxílio doença e acidente do trabalho (Lei 3.607/60 e Art. 131 da CLT) | E21: 0.76%
B22: B.4 | C22: Licença Paternidade (Art. 7º da CF/88) | E22: 0.11%
B23: B.5 | C23: Faltas Legais (Art. 473 da CLT) | E23: 0.67%
B24: B.6 | C24: 13º Salário (Lei nº 4090/62) | E24: 10.11%
B25: B.7 | C25: Aviso Prévio Trabalhado (Art. 7º, inciso XXI da CF/88) | E25: 0.34%
B26: B.8 | C26: Dias de Chuvas | E26: -
B27: B.9 | C27: Férias Gozadas | E27: -
B28: B.10 | C28: Salário Maternidade | E28: -
B29: B.11 | C29: Auxílio - Enfermidade | E29: -
B30: TOTAL GRUPO B | E30: =SUM(E19:E29) -> 33.42%
B31: GRUPO C - Encargos Sociais que não recebem a incidência do grupo A | E31: % IOPES
B32: C.1 | C32: Dispensa sem justa causa (LC 110/01) | E32: 5.34%
B33: C.2 | C33: Férias indenizadas (Art. 129 a 148 da CLT) | E33: 11.20%
B34: C.3 | C34: Aviso prévio indenizado (Art. 7º, inciso XXI da CF/88) | E34: 11.29%
B35: C.4 | C35: FGTS sobre aviso prévio indenizado (Súmula 305 TST) | E35: 0.90%
B36: C.5 | C36: INSS sobre aviso prévio indenizado (Decreto 6.727/09) | E36: 2.26%
B37: C.6 | C37: Aviso prévio trabalhado | E37: -
B38: C.7 | C38: Indenização Adicional | E38: -
B39: TOTAL GRUPO C | E39: =SUM(E32:E38) -> 30.99%
B40: GRUPO D - Reincidência dos encargos sociais básicos | E40: % IOPES
B41: D.1 | C41: Incidência do grupo A sobre o grupo B | E41: =E17*E30 -> 12.63%
B42: D.2 | C42: Reincidência de Grupo A sobre Aviso Prévio Trabalho e Reincidência do FGTS sobre Aviso Prévio Indenizado | E42: -
B43: TOTAL GRUPO D | E43: =SUM(E41:E42) -> 12.63%
B44: GRUPO E - Encargos complementares | E44: % IOPES
B45: E.1 | C45: Refeição/alimentação (Convenção Coletiva do Trabalho 2012/2013) | E45: 25.75%
B46: E.2 | C46: Vale Transporte (Lei nº 7418/85 e Decreto 95.247/87) | E46: 6.03%
B47: E.3 | C47: Uniforme/equipamento de segurança (Art. 166 da CLT e NR-18 da Lei nº 6.514/77 e Convenção Coletiva do Trabalho 2012/2013) | E47: 2.67%
B48: E.4 | C48: Plano de Saúde (Convenção Coletiva do Trabalho 2012/2013 | E48: 7.98%
B49: TOTAL GRUPO E | E49: 42.43%
B50: TOTAL DOS GRUPO (A+B+C+D+E) | E50: =E49+E39+E30+E17+E43 -> 157.27%

Sheet DRE-01
B1: COMPOSIÇÃO ANALÍTICA DE PREÇO UNITÁRIO | I1: Data-base
I3: JUL/22 e FEV/23
I4: DRE-01
A5: SERVIÇO: | B5: Trincheira drenante em concreto armado, incluíndo grelhas FOFO, escavação e reaterro
A6: UND: | B6: m
A7: ORÇAMENTISTA: JULIANA MARETO AMBROZIM CREA: ES- 18536/D
A8: REVISÃO DO ORÇAMENTO: THAIS BAPTISTA MENELLI CAU/ES A181604-7 / BRUNA PEROVANO SIRTULI CAU/ES A187736-4
A10: MÃO-DE-OBRA
A11: CÓD. | B11: ORGÃO | C11: DESCRIÇÃO | F11: UND | G11: COEF | H11: R$ UNIT. | I11: R$ PARCIAL
A13: TOTAL A | I13: 0
A15: MATERIAIS/ SERVIÇOS
A16: CÓD. | B16: ORGÃO | C16: DESCRIÇÃO | F16: UND | G16: COEF | H16: R$ UNIT. | I16: R$ PARCIAL
A17: 42992 | B17: DER-ES (Rodovias) | C17: Formas planas de madeira com 02 (dois) reaproveitamentos, em Vias Urbanas | F17: m² | G17: 3.68 | H17: R$ 105.26 | I17: =TRUNC(ROUND(G17*H17,2),2) -> R$ 387.36
A18: 40376 | B18: DER-ES (Rodovias) | C18: Aço CA-50, fornecimento, dobragem e colocação nas formas em Vias Urbanas | D18: Tubo de Concreto D=0.40M-Armado CA-2 | E18: Tubo de Concreto D=0.40M-Armado CA-2 | F18: kg | G18: 10.93 | H18: R$ 16.78 | I18: R$ 183.41
A19: 42720 | B19: DER-ES (Rodovias) | C19: Concreto estrutural fck -> 30,0 MPa em Vias Urbanas | F19: m³ | G19: 0.40 | H19: R$ 734.92 | I19: R$ 293.97
A20: 10782 | B20: DER-ES (Rodovias) | C20: Grelha articulada, inclusive caixilho em ferro fundido | F20: ud | G20: 1.00 | H20: R$ 515.88 | I20: R$ 515.88
A21: 42960 | B21: DER-ES (Rodovias) | C21: Escavação mecânica em material de 1ª cat. H-> 0,00 a 1,50 m, em Vias Urbanas | F21: m³ | G21: 1.08 | H21: R$ 20.25 | I21: R$ 21.87
A22: 43059 | B22: DER-ES (Rodovias) | C22: Reaterro de cavas c/ compactação mecânica (compactador manual), em Vias Urbanas | F22: m³ | G22: 0.40 | H22: R$ 46.33 | I22: R$ 18.53
A24: TOTAL B | I24: =SUM(I17:I22) -> R$ 1,421.02
A26: EQUIPAMENTOS
A27: CÓD. | B27: ORGÃO | C27: DESCRIÇÃO | F27: UND | G27: COEF | H27: R$ UNIT. | I27: R$ PARCIAL
A29: TOTAL C
A31: RESUMO
A32: TOTAL A | I32: =I13 -> 0
A33: TOTAL B | I33: =I24 -> 1,421.02
A34: TOTAL C | I34: 0
A35: PREÇO DE VENDA= TOTAL (A+B+C) | I35: =SUM(I32:I34) -> R$ 1,421.02

Sheet PAV-01
B1: COMPOSIÇÃO ANALÍTICA DE PREÇO UNITÁRIO | I1: Data-base
I3: JUL/22 e FEV/23
I4: PAV-01
A5: SERVIÇO: | B5: Pavimentação com blocos de concreto pavi-s colorido H->06cm tipo, colchão de pó de pedra 5cm, inclusive transporte dos blocos e areia, em Vias Urbanas (cores: amarelo, vermelho e grafite)
A6: UND: | B6: m²
A7: ORÇAMENTISTA: JULIANA MARETO AMBROZIM CREA: ES- 18536/D
A8: REVISÃO DO ORÇAMENTO: THAIS BAPTISTA MENELLI CAU/ES A181604-7 / BRUNA PEROVANO SIRTULI CAU/ES A187736-4
A10: MÃO-DE-OBRA
A11: CÓD. | B11: ORGÃO | C11: DESCRIÇÃO | F11: UND | G11: COEF | H11: R$ UNIT. | I11: R$ PARCIAL
A12: 10108 | B12: DER-ES | C12: CALCETEIRO/PINTOR (OFICIAL - SINDUSCON) (LABOR) | E12: Encargos Sociais: 157,27% | F12: h | G12: 0.241 | H12: 21.35 | I12: =TRUNC(ROUND(G12*H12,2),2) -> R$ 5.14
A13: 10146 | B13: DER-ES | C13: SERVENTE (AUXILIAR DE OBRAS - SINDUSCON) (LABOR) | E13: Encargos Sociais: 157,27% | F13: h | G13: 0.482 | H13: 15.85 | I13: =TRUNC(ROUND(G13*H13,2),2) -> R$ 7.64
A14: 20065 | B14: DER-ES | C14: Encarregado de Pavimentação | E14: Encargos Sociais: 157,27% | F14: h | G14: 0.120 | H14: 32.10 | I14: =TRUNC(ROUND(G14*H14,2),2) -> R$ 3.87
A16: TOTAL A | I16: =SUM(I12:I14) -> 16.65
A18: MATERIAIS/ SERVIÇOS
A19: CÓD. | B19: ORGÃO | C19: DESCRIÇÃO | F19: UND | G19: COEF | H19: R$ UNIT. | I19: R$ PARCIAL
A20: 20524 | B20: DER-ES | C20: PO DE PEDRA (LABOR) | F20: m³ | G20: 0.050 | H20: 97.13 | I20: =TRUNC(ROUND(G20*H20,2),2) -> R$ 4.86
A21: 36517 | B21: DER-ES | C21: BLOCO CONCRETO PAVI-S ESP. 6CM 35 MPA (48UN/M2) | F21: und | G21: 48.000 | H21: 1.28 | I21: =TRUNC(ROUND(G21*H21,2),2) -> R$ 61.44
A22: 2000 | B22: DER-ES | C22: Ferramentas Manuais (5% do valor da mão-de-obra) | G22: 0.050 | H22: =I16 -> 16.65 | I22: =TRUNC(ROUND(G22*H22,2),2) -> R$ 0.83
A23: TOTAL B | I23: =SUM(I20:I22) -> R$ 67.13
A25: EQUIPAMENTOS
A26: CÓD. | B26: ORGÃO | C26: DESCRIÇÃO | F26: UND | G26: COEF | H26: R$ UNIT. | I26: R$ PARCIAL
A27: 30032 | B27: DER-ES | C27: Rolo AP de pneus AP-26 (8,9t) (MULLER) ou equivalente - hora produtiva | F27: CHP | G27: 0.024 | H27: 324.23 | I27: =TRUNC(ROUND(G27*H27,2),2) -> R$ 7.81
A28: 30032 | B28: DER-ES | C28: Rolo AP de pneus AP-26 (8,9t) (MULLER) ou equivalente - hora improdutiva | F28: CHI | G28: 0.217 | H28: 105.56 | I28: =TRUNC(ROUND(G28*H28,2),2) -> R$ 22.89
A29: TOTAL C | I29: =SUM(I27:I28) -> R$ 30.70
A31: RESUMO
A32: TOTAL A | I32: =I16 -> 16.65
A33: TOTAL B | I33: =I23 -> 67.13
A34: TOTAL C | I34: =I29 -> 30.70
A35: PREÇO DE VENDA= TOTAL (A+B+C) | I35: =SUM(I32:I34) -> R$ 114.48

Sheet EQU-01
B1: COMPOSIÇÃO ANALÍTICA DE PREÇO UNITÁRIO | I1: Data-base
I3: JUL/22 e FEV/23
I4: EQU-01
A5: SERVIÇO: | B5: Fornecimento e instalação de banco com encosto e assento em madeira conforme detalhe de projeto
A6: UND: | B6: und
A7: ORÇAMENTISTA: JULIANA MARETO AMBROZIM CREA: ES- 18536/D
A8: REVISÃO DO ORÇAMENTO: THAIS BAPTISTA MENELLI CAU/ES A181604-7 / BRUNA PEROVANO SIRTULI CAU/ES A187736-4
A10: MÃO-DE-OBRA
A11: CÓD. | B11: ORGÃO | C11: DESCRIÇÃO | F11: UND | G11: COEF | H11: R$ UNIT. | I11: R$ PARCIAL
A12: 010139 | B12: DER-ES | C12: PEDREIRO - (OFICIAL - SINDUSCON) (LABOR) | E12: Encargos Sociais: 157,27% | F12: h | G12: 0.500 | H12: R$ 21.35 | I12: =TRUNC(ROUND(G12*H12,2),2) -> R$ 10.68
A13: 010146 | B13: DER-ES | C13: SERVENTE (AUXILIAR DE OBRAS - SINDUSCON) (LABOR) | E13: Encargos Sociais: 157,27% | F13: h | G13: 1.000 | H13: R$ 15.85 | I13: =TRUNC(ROUND(G13*H13,2),2) -> R$ 15.85
A14: 010101 | B14: DER-ES | C14: AJUDANTE (AJUDANTE PRATICO - SINDUSCON) (LABOR) | E14: Encargos Sociais: 157,27% | F14: h | G14: 2.000 | H14: R$ 18.01 | I14: =TRUNC(ROUND(G14*H14,2),2) -> R$ 36.02
A15: 010140 | B15: DER-ES | C15: PINTOR -(OFICIAL - SINDUSCON) (LABOR) | E15: Encargos Sociais: 157,27% | F15: h | G15: 1.000 | H15: R$ 21.35 | I15: R$ 21.35
A17: TOTAL A | I17: =SUM(I12:I15) -> 83.90
A19: MATERIAIS/ SERVIÇOS
A20: CÓD. | B20: ORGÃO | C20: DESCRIÇÃO | F20: UND | G20: COEF | H20: R$ UNIT. | I20: R$ PARCIAL
A21: 040235 | B21: DER-ES | C21: Fornecimento, preparo e aplicação de concreto Fck=20 MPa (brita 1 e 2) - (5% de perdas já incluído no custo) | F21: M³ | G21: 0.075 | H21: R$ 711.27 | I21: =TRUNC(ROUND(G21*H21,2),2) -> R$ 53.35
A22: 040238 | B22: DER-ES | C22: Fôrma de chapa compensada resinada 12mm, levando-se em conta a utilização 3 vezes (incluido o material, corte, montagem, escoramento e desfôrma) | F22: M² | G22: 2.500 | H22: R$ 80.18 | I22: =TRUNC(ROUND(G22*H22,2),2) -> R$ 200.45
A23: 026548 | B23: DER-ES | C23: BUCHA PLASTICA COM PARAFUSO - 8MM (LABOR) | F23: UND | G23: 16.000 | H23: R$ 0.48 | I23: R$ 7.68
A24: 11565 | B24: DER-ES (Rodovias) | C24: Parafuso sextavado, soberba 5/8" x 6" com porca e arruela | F24: UND | G24: 16.000 | H24: R$ 10.43 | I24: R$ 166.88
A25: 021041 | B25: DER-ES | C25: PECA EM MADEIRA DE LEI 5.0 X 10.0 CM (APARELHADA) | F25: M | G25: 16.000 | H25: R$ 29.66 | I25: R$ 474.56
A26: 038088 | B26: DER-ES | C26: VERNIZ COPAL INCOLOR BRILHANTE PREMIUM, SUVINIL, EUCATEX, MONTANA OU EQUIVALENTE | F26: L | G26: 1.000 | H26: R$ 43.23 | I26: R$ 43.23
A27: 038001 | B27: DER-ES | C27: AGUARRAZ MINERAL | F27: L | G27: 1.000 | H27: R$ 18.63 | I27: R$ 18.63
A28: 038013 | B28: DER-ES | C28: LIXA PARA MADEIRA/MASSA Nº 150 | F28: UND | G28: 3.000 | H28: R$ 1.04 | I28: R$ 3.12
A29: TOTAL B | I29: =SUM(I21:I28) -> R$ 967.90
A31: EQUIPAMENTOS
A32: CÓD. | B32: ORGÃO | C32: DESCRIÇÃO | F32: UND | G32: COEF | H32: R$ UNIT. | I32: R$ PARCIAL
A34: TOTAL C | I34: =SUM(I33) -> R$ 0.00
A36: RESUMO
A37: TOTAL A | I37: =I17 -> 83.90
A38: TOTAL B | I38: =I29 -> 967.90
A39: TOTAL C | I39: 0
A40: PREÇO DE VENDA= TOTAL (A+B+C) | I40: =SUM(I37:I39) -> R$ 1,051.80

Sheet EQU-02
B1: COMPOSIÇÃO ANALÍTICA DE PREÇO UNITÁRIO | I1: Data-base
I3: JUL/22 e FEV/23
I4: EQU-02
A5: SERVIÇO: | B5: Fornecimento instalação de lixeira seletiva 50 litros, com suporte tubular em aço galvanizado, DN 3", incluindo chumbamento em base de concreto
A6: UND: | B6: und
A7: ORÇAMENTISTA: JULIANA MARETO AMBROZIM CREA: ES- 18536/D
A8: REVISÃO DO ORÇAMENTO: THAIS BAPTISTA MENELLI CAU/ES A181604-7 / BRUNA PEROVANO SIRTULI CAU/ES A187736-4
A10: MÃO-DE-OBRA
A11: CÓD. | B11: ORGÃO | C11: DESCRIÇÃO | F11: UND | G11: COEF | H11: R$ UNIT. | I11: R$ PARCIAL
A12: 010139 | B12: DER-ES | C12: PEDREIRO - (OFICIAL - SINDUSCON) (LABOR) | E12: Encargos Sociais: 157,27% | F12: h | G12: 1.000 | H12: 21.35 | I12: =TRUNC(ROUND(G12*H12,2),2) -> R$ 21.35
A13: 010146 | B13: DER-ES | C13: SERVENTE (AUXILIAR DE OBRAS - SINDUSCON) (LABOR) | E13: Encargos Sociais: 157,27% | F13: h | G13: 1.000 | H13: 15.85 | I13: =TRUNC(ROUND(G13*H13,2),2) -> R$ 15.85
A14: TOTAL A | I14: =SUM(I12:I13) -> 37.20
A16: MATERIAIS/ SERVIÇOS
A17: CÓD. | B17: ORGÃO | C17: DESCRIÇÃO | F17: UND | G17: COEF | H17: R$ UNIT. | I17: R$ PARCIAL
A18: COTAÇÃO | B18: MERCADO | C18: Lixeira seletiva 50 litros verde | F18: und | G18: 1.000 | H18: ='COTAÇÕES '!U8 -> 257.47 | I18: =TRUNC(ROUND(G18*H18,2),2) -> R$ 257.47
A19: 060508 | B19: DER-ES | C19: TUBO DE ACO GALVANIZADO 88,90 X 3,35MM (3") LEVE | F19: m | G19: 1.000 | H19: 117.66 | I19: =TRUNC(ROUND(G19*H19,2),2) -> R$ 117.66
A20: 040324 | B20: DER-ES | C20: Fornecimento, preparo e aplicação de concreto Fck=25 MPa (brita 1 e 2) - (5% de perdas já incluído no custo) | F20: m3 | G20: 0.045 | H20: 836.22 | I20: =TRUNC(ROUND(G20*H20,2),2) -> R$ 37.63
A21: 030101 | B21: DER-ES | C21: Escavação manual em material de 1a. categoria, até 1.50 m de profundidade | F21: m3 | G21: 0.045 | H21: 51.51 | I21: =TRUNC(ROUND(G21*H21,2),2) -> R$ 2.32
A22: TOTAL B | I22: =SUM(I18:I21) -> R$ 415.08
A24: EQUIPAMENTOS
A25: CÓD. | B25: ORGÃO | C25: DESCRIÇÃO | F25: UND | G25: COEF | H25: R$ UNIT. | I25: R$ PARCIAL
A27: TOTAL C
A29: RESUMO
A30: TOTAL A | I30: =I14 -> 37.20
A31: TOTAL B | I31: =I22 -> 415.08
A32: TOTAL C | I32: 0
A33: PREÇO DE VENDA= TOTAL (A+B+C) | I33: =SUM(I30:I32) -> R$ 452.28

Sheet EQU-03
B1: COMPOSIÇÃO ANALÍTICA DE PREÇO UNITÁRIO | I1: Data-base
I3: JUL/22 e FEV/23
I4: EQU-03
A5: SERVIÇO: | B5: Retirada de Lixeira
A6: UND: | B6: und
A7: ORÇAMENTISTA: JULIANA MARETO AMBROZIM CREA: ES- 18536/D
A8: REVISÃO DO ORÇAMENTO: THAIS BAPTISTA MENELLI CAU/ES A181604-7 / BRUNA PEROVANO SIRTULI CAU/ES A187736-4
A10: MÃO-DE-OBRA
A11: CÓD. | B11: ORGÃO | C11: DESCRIÇÃO | F11: UND | G11: COEF | H11: R$ UNIT. | I11: R$ PARCIAL
A12: 10139 | B12: DER-ES | C12: PEDREIRO - (OFICIAL - SINDUSCON) (LABOR) | E12: Encargos Sociais: 157,27% | F12: h | G12: 0.200 | H12: 21.35 | I12: =TRUNC(ROUND(G12*H12,2),2) -> R$ 4.27
A13: 10146 | B13: DER-ES | C13: SERVENTE (AUXILIAR DE OBRAS - SINDUSCON) (LABOR) | E13: Encargos Sociais: 157,27% | F13: h | G13: 0.200 | H13: 15.85 | I13: =TRUNC(ROUND(G13*H13,2),2) -> R$ 3.17
A15: TOTAL A | I15: =SUM(I12:I13) -> 7.44
A17: MATERIAIS/ SERVIÇOS
A18: CÓD. | B18: ORGÃO | C18: DESCRIÇÃO | F18: UND | G18: COEF | H18: R$ UNIT. | I18: R$ PARCIAL
A22: TOTAL B | I22: =SUM(I19:I21) -> R$ 0.00
A24: EQUIPAMENTOS
A25: CÓD. | B25: ORGÃO | C25: DESCRIÇÃO | F25: UND | G25: COEF | H25: R$ UNIT. | I25: R$ PARCIAL
A27: TOTAL C
A29: RESUMO
A30: TOTAL A | I30: =I15 -> 7.44
A31: TOTAL B | I31: =I22 -> 0
A32: TOTAL C | I32: 0
A33: PREÇO DE VENDA= TOTAL (A+B+C) | I33: =SUM(I30:I32) -> R$ 7.44

Sheet EQU-04
B1: COMPOSIÇÃO ANALÍTICA DE PREÇO UNITÁRIO | I1: Data-base
I3: JUL/22 e FEV/23
I4: EQU-04
A5: SERVIÇO: | B5: Retirada de Mobiliário Urbano
A6: UND: | B6: und
A7: ORÇAMENTISTA: JULIANA MARETO AMBROZIM CREA: ES- 18536/D
A8: REVISÃO DO ORÇAMENTO: THAIS BAPTISTA MENELLI CAU/ES A181604-7 / BRUNA PEROVANO SIRTULI CAU/ES A187736-4
A10: MÃO-DE-OBRA
A11: CÓD. | B11: ORGÃO | C11: DESCRIÇÃO | F11: UND | G11: COEF | H11: R$ UNIT. | I11: R$ PARCIAL
A12: 10139 | B12: DER-ES | C12: PEDREIRO - (OFICIAL - SINDUSCON) (LABOR) | E12: Encargos Sociais: 157,27% | F12: h | G12: 0.500 | H12: 21.35 | I12: =TRUNC(ROUND(G12*H12,2),2) -> R$ 10.68
A13: 10146 | B13: DER-ES | C13: SERVENTE (AUXILIAR DE OBRAS - SINDUSCON) (LABOR) | E13: Encargos Sociais: 157,27% | F13: h | G13: 0.500 | H13: 15.85 | I13: =TRUNC(ROUND(G13*H13,2),2) -> R$ 7.93
A15: TOTAL A | I15: =SUM(I12:I13) -> 18.61
A17: MATERIAIS/ SERVIÇOS
A18: CÓD. | B18: ORGÃO | C18: DESCRIÇÃO | F18: UND | G18: COEF | H18: R$ UNIT. | I18: R$ PARCIAL
A22: TOTAL B | I22: =SUM(I19:I21) -> R$ 0.00
A24: EQUIPAMENTOS
A25: CÓD. | B25: ORGÃO | C25: DESCRIÇÃO | F25: UND | G25: COEF | H25: R$ UNIT. | I25: R$ PARCIAL
A27: TOTAL C
A29: RESUMO
A30: TOTAL A | I30: =I15 -> 18.61
A31: TOTAL B | I31: =I22 -> 0
A32: TOTAL C | I32: 0
A33: PREÇO DE VENDA= TOTAL (A+B+C) | I33: =SUM(I30:I32) -> R$ 18.61

Sheet PAI-01
B1: COMPOSIÇÃO ANALÍTICA DE PREÇO UNITÁRIO | I1: Data-base
I3: JUL/22 e FEV/23
I4: PAI-01
A5: SERVIÇO: | B5: Fornecimento e Plantio de CLÚSIA (clusia fluminensis)
A6: UND: | B6: und
A7: ORÇAMENTISTA: JULIANA MARETO AMBROZIM CREA: ES- 18536/D
A8: REVISÃO DO ORÇAMENTO: THAIS BAPTISTA MENELLI CAU/ES A181604-7 / BRUNA PEROVANO SIRTULI CAU/ES A187736-4
A10: MÃO-DE-OBRA
A11: CÓD. | B11: ORGÃO | C11: DESCRIÇÃO | F11: UND | G11: COEF | H11: R$ UNIT. | I11: R$ PARCIAL
A12: 010101 | B12: DER-ES | C12: AJUDANTE (AJUDANTE PRATICO - SINDUSCON) (LABOR) | E12: Encargos Sociais: 157,27% | F12: h | G12: 0.1800 | H12: 18.01 | I12: =TRUNC(ROUND(G12*H12,2),2) -> R$ 3.24
A14: TOTAL A | I14: =SUM(I12:I12) -> 3.24
A16: MATERIAIS/ SERVIÇOS
A17: CÓD. | B17: ORGÃO | C17: DESCRIÇÃO | F17: UND | G17: COEF | H17: R$ UNIT. | I17: R$ PARCIAL
A18: COTAÇÃO | B18: MERCADO | C18: Fornecimento de CLÚSIA (clusia fluminensis) | F18: und | G18: 1.0000 | H18: ='COTAÇÕES '!U10 -> 27.80 | I18: =TRUNC(ROUND(G18*H18,2),2) -> R$ 27.80
A19: 038511 | B19: DER-ES | C19: Terra Vegetal | D19: Escav. man. valetas e cavas de fundação mat.1ªcat. 1,50m (B2-001-00) (I0-004-00) | E19: Escav. man. valetas e cavas de fundação mat.1ªcat. 1,50m (B2-001-00) (I0-004-00) | F19: m³ | G19: 0.0247 | H19: 179.71 | I19: =TRUNC(ROUND(G19*H19,2),2) -> R$ 4.43
A20: 10574 | B20: DER-ES (Rodovias) | C20: Adubo NPK | F20: kg | G20: 0.0247 | H20: 2.92 | I20: =TRUNC(ROUND(G20*H20,2),2) -> R$ 0.07
A21: 020503 | B21: DER-ES | C21: Areia lavada média | F21: m³ | G21: 0.0033 | H21: 146.22 | I21: =TRUNC(ROUND(G21*H21,2),2) -> R$ 0.49
A22: TOTAL B | I22: =SUM(I18:I21) -> R$ 32.79
A24: EQUIPAMENTOS
A25: CÓD. | B25: ORGÃO | C25: DESCRIÇÃO | F25: UND | G25: COEF | H25: R$ UNIT. | I25: R$ PARCIAL
A27: TOTAL C
A29: RESUMO
A30: TOTAL A | I30: =I14 -> 3.24
A31: TOTAL B | I31: =I22 -> 32.79
A32: TOTAL C | I32: 0
A33: PREÇO DE VENDA= TOTAL (A+B+C) | I33: =SUM(I30:I32) -> R$ 36.03

Sheet PAI-02
B1: COMPOSIÇÃO ANALÍTICA DE PREÇO UNITÁRIO | I1: Data-base
I3: JUL/22 e FEV/23
I4: PAI-02
A5: SERVIÇO: | B5: Fornecimento e Plantio de IXORA (ixora coccínea)
A6: UND: | B6: und
A7: ORÇAMENTISTA: JULIANA MARETO AMBROZIM CREA: ES- 18536/D
A8: REVISÃO DO ORÇAMENTO: THAIS BAPTISTA MENELLI CAU/ES A181604-7 / BRUNA PEROVANO SIRTULI CAU/ES A187736-4
A10: MÃO-DE-OBRA
A11: CÓD. | B11: ORGÃO | C11: DESCRIÇÃO | F11: UND | G11: COEF | H11: R$ UNIT. | I11: R$ PARCIAL
A12: 010101 | B12: DER-ES | C12: AJUDANTE (AJUDANTE PRATICO - SINDUSCON) (LABOR) | E12: Encargos Sociais: 157,27% | F12: h | G12: 0.1800 | H12: 18.01 | I12: =TRUNC(ROUND(G12*H12,2),2) -> R$ 3.24
A14: TOTAL A | I14: =SUM(I12:I12) -> 3.24
A16: MATERIAIS/ SERVIÇOS
A17: CÓD. | B17: ORGÃO | C17: DESCRIÇÃO | F17: UND | G17: COEF | H17: R$ UNIT. | I17: R$ PARCIAL
A18: COTAÇÃO | B18: MERCADO | C18: Fornecimento de IXORA CORAL (ixora coccínea) | F18: und | G18: 1.0000 | H18: ='COTAÇÕES '!U11 -> 14.23 | I18: =TRUNC(ROUND(G18*H18,2),2) -> R$ 14.23
A19: 038511 | B19: DER-ES | C19: Terra Vegetal | D19: Escav. man. valetas e cavas de fundação mat.1ªcat. 1,50m (B2-001-00) (I0-004-00) | E19: Escav. man. valetas e cavas de fundação mat.1ªcat. 1,50m (B2-001-00) (I0-004-00) | F19: m³ | G19: 0.0247 | H19: 179.71 | I19: =TRUNC(ROUND(G19*H19,2),2) -> R$ 4.43
A20: 10574 | B20: DER-ES (Rodovias) | C20: Adubo NPK | F20: kg | G20: 0.0247 | H20: 2.92 | I20: =TRUNC(ROUND(G20*H20,2),2) -> R$ 0.07
A21: 020503 | B21: DER-ES | C21: Areia lavada média | F21: m³ | G21: 0.0033 | H21: 146.22 | I21: =TRUNC(ROUND(G21*H21,2),2) -> R$ 0.49
A23: TOTAL B | I23: =SUM(I18:I22) -> R$ 19.22
A25: EQUIPAMENTOS
A26: CÓD. | B26: ORGÃO | C26: DESCRIÇÃO | F26: UND | G26: COEF | H26: R$ UNIT. | I26: R$ PARCIAL
A28: TOTAL C
A30: RESUMO
A31: TOTAL A | I31: =I14 -> 3.24
A32: TOTAL B | I32: =I23 -> 19.22
A33: TOTAL C | I33: 0
A34: PREÇO DE VENDA= TOTAL (A+B+C) | I34: =SUM(I31:I33) -> R$ 22.46

Sheet PAI-03
B1: COMPOSIÇÃO ANALÍTICA DE PREÇO UNITÁRIO | I1: Data-base
I3: JUL/22 e FEV/23
I4: PAI-03
A5: SERVIÇO: | B5: Fornecimento e Plantio de PINGO DE OURO (Duranta Repens)
A6: UND: | B6: und
A7: ORÇAMENTISTA: JULIANA MARETO AMBROZIM CREA: ES- 18536/D
A8: REVISÃO DO ORÇAMENTO: THAIS BAPTISTA MENELLI CAU/ES A181604-7 / BRUNA PEROVANO SIRTULI CAU/ES A187736-4
A10: MÃO-DE-OBRA
A11: CÓD. | B11: ORGÃO | C11: DESCRIÇÃO | F11: UND | G11: COEF | H11: R$ UNIT. | I11: R$ PARCIAL
A12: 010101 | B12: DER-ES | C12: AJUDANTE (AJUDANTE PRATICO - SINDUSCON) (LABOR) | E12: Encargos Sociais: 157,27% | F12: h | G12: 0.1800 | H12: 18.01 | I12: =TRUNC(ROUND(G12*H12,2),2) -> R$ 3.24
A14: TOTAL A | I14: =SUM(I12:I12) -> 3.24
A16: MATERIAIS/ SERVIÇOS
A17: CÓD. | B17: ORGÃO | C17: DESCRIÇÃO | F17: UND | G17: COEF | H17: R$ UNIT. | I17: R$ PARCIAL
A18: COTAÇÃO | B18: MERCADO | C18: Fornecimento de PINGO DE OURO (duranta repens) | F18: und | G18: 1.0000 | H18: ='COTAÇÕES '!U12 -> 4.23 | I18: =TRUNC(ROUND(G18*H18,2),2) -> R$ 4.23
A19: 038511 | B19: DER-ES | C19: Terra Vegetal | D19: Escav. man. valetas e cavas de fundação mat.1ªcat. 1,50m (B2-001-00) (I0-004-00) | E19: Escav. man. valetas e cavas de fundação mat.1ªcat. 1,50m (B2-001-00) (I0-004-00) | F19: m³ | G19: 0.0062 | H19: 179.71 | I19: =TRUNC(ROUND(G19*H19,2),2) -> R$ 1.11
A20: 10574 | B20: DER-ES (Rodovias) | C20: Adubo NPK | F20: kg | G20: 0.0062 | H20: 2.92 | I20: =TRUNC(ROUND(G20*H20,2),2) -> R$ 0.02
A21: 020503 | B21: DER-ES | C21: Areia média lavada | F21: m³ | G21: 0.0008 | H21: 146.22 | I21: =TRUNC(ROUND(G21*H21,2),2) -> R$ 0.12
A23: TOTAL B | I23: =SUM(I18:I22) -> R$ 5.48
A25: EQUIPAMENTOS
A26: CÓD. | B26: ORGÃO | C26: DESCRIÇÃO | F26: UND | G26: COEF | H26: R$ UNIT. | I26: R$ PARCIAL
A28: TOTAL C
A30: RESUMO
A31: TOTAL A | I31: =I14 -> 3.24
A32: TOTAL B | I32: =I23 -> 5.48
A33: TOTAL C | I33: 0
A34: PREÇO DE VENDA= TOTAL (A+B+C) | I34: =SUM(I31:I33) -> R$ 8.72

Sheet PAI-04
B1: COMPOSIÇÃO ANALÍTICA DE PREÇO UNITÁRIO | I1: Data-base
I3: JUL/22 e FEV/23
I4: PAI-04
A5: SERVIÇO: | B5: Fornecimento e Plantio de VEDÉLIA (wedlia trilobata)
A6: UND: | B6: und
A7: ORÇAMENTISTA: JULIANA MARETO AMBROZIM CREA: ES- 18536/D
A8: REVISÃO DO ORÇAMENTO: THAIS BAPTISTA MENELLI CAU/ES A181604-7 / BRUNA PEROVANO SIRTULI CAU/ES A187736-4
A10: MÃO-DE-OBRA
A11: CÓD. | B11: ORGÃO | C11: DESCRIÇÃO | F11: UND | G11: COEF | H11: R$ UNIT. | I11: R$ PARCIAL
A12: 010101 | B12: DER-ES | C12: AJUDANTE (AJUDANTE PRATICO - SINDUSCON) (LABOR) | E12: Encargos Sociais: 157,27% | F12: h | G12: 0.8400 | H12: 18.01 | I12: =TRUNC(ROUND(G12*H12,2),2) -> R$ 15.13
A14: TOTAL A | I14: =SUM(I12:I12) -> 15.13
A16: MATERIAIS/ SERVIÇOS
A17: CÓD. | B17: ORGÃO | C17: DESCRIÇÃO | F17: UND | G17: COEF | H17: R$ UNIT. | I17: R$ PARCIAL
A18: COTAÇÃO | B18: MERCADO | C18: Fornecimento de VEDÉLIA (wedlia trilobata) | F18: und | G18: 1.0000 | H18: ='COTAÇÕES '!U9 -> 2.67 | I18: =TRUNC(ROUND(G18*H18,2),2) -> R$ 2.67
A19: 10574 | B19: DER-ES (Rodovias) | C19: Adubo NPK | F19: kg | G19: 0.0031 | H19: 2.92 | I19: =TRUNC(ROUND(G19*H19,2),2) -> R$ 0.01
A20: 020503 | B20: DER-ES | C20: Areia média lavada | F20: m³ | G20: 0.0006 | H20: 146.22 | I20: =TRUNC(ROUND(G20*H20,2),2) -> R$ 0.09
A22: TOTAL B | I22: =SUM(I18:I21) -> R$ 2.77
A24: EQUIPAMENTOS
A25: CÓD. | B25: ORGÃO | C25: DESCRIÇÃO | F25: UND | G25: COEF | H25: R$ UNIT. | I25: R$ PARCIAL
A27: TOTAL C
A29: RESUMO
A30: TOTAL A | I30: =I14 -> 15.13
A31: TOTAL B | I31: =I22 -> 2.77
A32: TOTAL C | I32: 0
A33: PREÇO DE VENDA= TOTAL (A+B+C) | I33: =SUM(I30:I32) -> R$ 17.90

Sheet PAI-05
B1: COMPOSIÇÃO ANALÍTICA DE PREÇO UNITÁRIO | I1: Data-base
I3: JUL/22 e FEV/23
I4: PAI-05
A5: SERVIÇO: | B5: Fornecimento e Plantio de GRAMA BATATAIS (Paspalum Notatum)
A6: UND: | B6: m²
A7: ORÇAMENTISTA: JULIANA MARETO AMBROZIM CREA: ES- 18536/D
A8: REVISÃO DO ORÇAMENTO: THAIS BAPTISTA MENELLI CAU/ES A181604-7 / BRUNA PEROVANO SIRTULI CAU/ES A187736-4
A10: MÃO-DE-OBRA
A11: CÓD. | B11: ORGÃO | C11: DESCRIÇÃO | F11: UND | G11: COEF | H11: R$ UNIT. | I11: R$ PARCIAL
A12: 010101 | B12: DER-ES | C12: AJUDANTE (AJUDANTE PRATICO - SINDUSCON) (LABOR) | E12: Encargos Sociais: 157,27% | F12: h | G12: 0.1600 | H12: 18.01 | I12: =TRUNC(ROUND(G12*H12,2),2) -> R$ 2.88
A14: TOTAL A | I14: =SUM(I12:I12) -> 2.88
A16: MATERIAIS/ SERVIÇOS
A17: CÓD. | B17: ORGÃO | C17: DESCRIÇÃO | F17: UND | G17: COEF | H17: R$ UNIT. | I17: R$ PARCIAL
A18: 3324 | B18: SINAPI | C18: GRAMA BATATAIS EM PLACAS, SEM PLANTIO | F18: m² | G18: 1.0000 | H18: 9.92 | I18: =TRUNC(ROUND(G18*H18,2),2) -> R$ 9.92
A19: 10574 | B19: DER-ES (Rodovias) | C19: Adubo NPK | F19: kg | G19: 0.1000 | H19: 2.92 | I19: =TRUNC(ROUND(G19*H19,2),2) -> R$ 0.29
A21: TOTAL B | I21: =SUM(I18:I20) -> R$ 10.21
A23: EQUIPAMENTOS
A24: CÓD. | B24: ORGÃO | C24: DESCRIÇÃO | F24: UND | G24: COEF | H24: R$ UNIT. | I24: R$ PARCIAL
A26: TOTAL C
A28: RESUMO
A29: TOTAL A | I29: =I14 -> 2.88
A30: TOTAL B | I30: =I21 -> 10.21
A31: TOTAL C | I31: 0
A32: PREÇO DE VENDA= TOTAL (A+B+C) | I32: =SUM(I29:I31) -> R$ 13.09

Sheet ELE-01
B1: COMPOSIÇÃO ANALÍTICA DE PREÇO UNITÁRIO | I1: Data-base
I3: JUL/22 e FEV/23
I4: ELE-01
A5: SERVIÇO: | B5: Quadro de comando em policarbonato dimensões mínimas 500x400x200mm completo com placa de montagem, disjuntores, contator , trilho, canaleta de pvc e barras de cobre conforme detalhe em projeto
A6: UND: | B6: und
A7: ORÇAMENTISTA: JULIANA MARETO AMBROZIM CREA: ES- 18536/D
A8: REVISÃO DO ORÇAMENTO: THAIS BAPTISTA MENELLI CAU/ES A181604-7 / BRUNA PEROVANO SIRTULI CAU/ES A187736-4
A10: MÃO-DE-OBRA
A11: CÓD. | B11: ORGÃO | C11: DESCRIÇÃO | F11: UND | G11: COEF | H11: R$ UNIT. | I11: R$ PARCIAL
A12: 010115 | B12: DER-ES | C12: ELETRICISTA (OFICIAL - SINDUSCON) (LABOR) | E12: Encargos Sociais: 157,27% | F12: h | G12: 8.000 | H12: 21.35 | I12: =TRUNC(ROUND(G12*H12,2),2) -> R$ 170.80
A13: 010101 | B13: DER-ES | C13: AJUDANTE (AJUDANTE PRATICO - SINDUSCON) (LABOR) | E13: Encargos Sociais: 157,27% | F13: h | G13: 8.000 | H13: 18.01 | I13: =TRUNC(ROUND(G13*H13,2),2) -> R$ 144.08
A14: TOTAL A | I14: =SUM(I12:I13) -> 314.88
A16: MATERIAIS/ SERVIÇOS
A17: CÓD. | B17: ORGÃO | C17: DESCRIÇÃO | F17: UND | G17: COEF | H17: R$ UNIT. | I17: R$ PARCIAL
A18: COTAÇÃO Atualizado pelo INCC de julho/2013 para fevereiro/2023 | B18: MERCADO | C18: Quadro de comando em policarbonato dimensões mínimas 500x400x200mm completo com placa de montagem, disjuntores, contator , trilho, canaleta de pvc e barras de cobre conforme detalhe em projeto | F18: und | G18: 1.00 | H18: 1,441.16 | I18: =TRUNC(ROUND(G18*H18,2),2) -> R$ 1,441.16
A19: TOTAL B | I19: =SUM(I18:I18) -> R$ 1,441.16
A21: EQUIPAMENTOS
A22: CÓD. | B22: ORGÃO | C22: DESCRIÇÃO | F22: UND | G22: COEF | H22: R$ UNIT. | I22: R$ PARCIAL
A25: TOTAL C | I25: =SUM(I23:I24) -> R$ 0.00
A27: RESUMO
A28: TOTAL A | I28: =I14 -> 314.88
A29: TOTAL B | I29: =I19 -> 1,441.16
A30: TOTAL C | I30: =I25 -> 0
A31: PREÇO DE VENDA= TOTAL (A+B+C) | I31: =SUM(I28:I30) -> R$ 1,756.04

Sheet ELE-02
B1: COMPOSIÇÃO ANALÍTICA DE PREÇO UNITÁRIO | I1: Data-base
I3: JUL/22 e FEV/23
I4: ELE-02
A5: SERVIÇO: | B5: POSTE FOTOVOLTÁICO, ALTURA DE 4,00 m, 2 LUMINÁRIAS 150W, FORNECIMENTO E INSTALAÇÃO
A6: UND: | B6: und
A7: ORÇAMENTISTA: JULIANA MARETO AMBROZIM CREA: ES- 18536/D
A8: REVISÃO DO ORÇAMENTO: THAIS BAPTISTA MENELLI CAU/ES A181604-7 / BRUNA PEROVANO SIRTULI CAU/ES A187736-4
A10: MÃO-DE-OBRA
A11: CÓD. | B11: ORGÃO | C11: DESCRIÇÃO | F11: UND | G11: COEF | H11: R$ UNIT. | I11: R$ PARCIAL
A12: 010115 | B12: DER-ES | C12: ELETRICISTA (OFICIAL - SINDUSCON) (LABOR) | E12: Encargos Sociais: 157,27% | F12: h | G12: 2.250 | H12: 21.35 | I12: =TRUNC(ROUND(G12*H12,2),2) -> R$ 48.04
A13: 010139 | B13: DER-ES | C13: PEDREIRO - (OFICIAL - SINDUSCON) (LABOR) | E13: Encargos Sociais: 157,27% | F13: h | G13: 3.950 | H13: 21.35 | I13: =TRUNC(ROUND(G13*H13,2),2) -> R$ 84.33
A14: 010101 | B14: DER-ES | C14: AJUDANTE (AJUDANTE PRATICO - SINDUSCON) (LABOR) | E14: Encargos Sociais: 157,27% | F14: h | G14: =2.25+9.95 -> 12.200 | H14: 18.01 | I14: =TRUNC(ROUND(G14*H14,2),2) -> R$ 219.72
A15: TOTAL A | I15: =SUM(I12:I14) -> 352.09
A17: MATERIAIS/ SERVIÇOS
A18: CÓD. | B18: ORGÃO | C18: DESCRIÇÃO | F18: UND | G18: COEF | H18: R$ UNIT. | I18: R$ PARCIAL
A19: COTAÇÕES Atualizadas pelo INCC de julho/2022 para fevereiro/2023 | B19: MERCADO | C19: POSTE GALVANIZADO H=4,00 m, COM DOIS BRAÇOS PARA LUMINÁRIA | F19: und | G19: 1.00 | H19: 1,449.42 | I19: =TRUNC(ROUND(G19*H19,2),2) -> R$ 1,449.42
B20: MERCADO | C20: BATERIA ESTACIONÁRIA 150 A 250 AH | F20: und | G20: 1.00 | H20: 1,494.07 | I20: R$ 1,494.07
B21: MERCADO | C21: LUMINÁRIA LED 150 W - IP65 - IP67 | F21: und | G21: 2.00 | H21: 423.81 | I21: R$ 847.62
B22: MERCADO | C22: PAINEL SOLAR 210W A 285W | F22: und | G22: 1.00 | H22: 713.92 | I22: R$ 713.92
B23: MERCADO | C23: CONTROLER PARA PLACA SOLAR 285 WP A 500 WP | F23: und | G23: 1.00 | H23: 418.70 | I23: R$ 418.70
B24: MERCADO | C24: QUADRO TIPO PAINEL COMANDO COM CHAVE TAMANHO MÉDIO 500 X 400 X 250 MM FECHAMENTO EMBORRACHADO - CEMAR OU SIMILAR | F24: und | G24: 1.00 | H24: 653.09 | I24: R$ 653.09
A25: 040320 | B25: DER-ES | C25: FORNECIMENTO, PREPARO E APLICAÇÃO DE CONCRETO FCK=15 MPA (BRITA 1 E 2) - (5% DE PERDAS JÁ INCLUÍDO NO CUSTO) | F25: m³ | G25: 3.83 | H25: R$ 789.30 | I25: R$ 3,019.07
A26: 021517 | B26: DER-ES | C26: ACO CA-50 DE 8.0MM | F26: kg | G26: 1.25 | H26: R$ 6.88 | I26: R$ 8.60
A27: TOTAL B | I27: =SUM(I19:I26) -> R$ 8,604.49
A29: EQUIPAMENTOS
A30: CÓD. | B30: ORGÃO | C30: DESCRIÇÃO | F30: UND | G30: COEF | H30: R$ UNIT. | I30: R$ PARCIAL
A33: TOTAL C | I33: =SUM(I31:I32) -> R$ 0.00
A35: RESUMO
A36: TOTAL A | I36: =I15 -> 352.09
A37: TOTAL B | I37: =I27 -> 8,604.49
A38: TOTAL C | I38: =I33 -> 0
A39: PREÇO DE VENDA= TOTAL (A+B+C) | I39: =SUM(I36:I38) -> R$ 8,956.58

Sheet ELE-03
B1: COMPOSIÇÃO ANALÍTICA DE PREÇO UNITÁRIO | I1: Data-base
I3: JUL/22 e FEV/23
I4: ELE-03
A5: SERVIÇO: | B5: RELÉ FOTOELÉTRICO PARA COMANDO DE ILUMINAÇÃO EXTERNA 1000 W - FORNECIMENTO E INSTALAÇÃO
A6: UND: | B6: und
A7: ORÇAMENTISTA: JULIANA MARETO AMBROZIM CREA: ES- 18536/D
A8: REVISÃO DO ORÇAMENTO: THAIS BAPTISTA MENELLI CAU/ES A181604-7 / BRUNA PEROVANO SIRTULI CAU/ES A187736-4
A9: Referência: SINAPI-ES 101632
A10: MÃO-DE-OBRA
A11: CÓD. | B11: ORGÃO | C11: DESCRIÇÃO | F11: UND | G11: COEF | H11: R$ UNIT. | I11: R$ PARCIAL
A12: 10115 | B12: DER-ES | C12: ELETRICISTA (OFICIAL - SINDUSCON) (LABOR) | E12: Encargos Sociais: 157,27% | F12: h | G12: 0.168 | H12: 21.35 | I12: =TRUNC(ROUND(G12*H12,2),2) -> R$ 3.59
A13: 10101 | B13: DER-ES | C13: AJUDANTE (AJUDANTE PRATICO - SINDUSCON) (LABOR) | E13: Encargos Sociais: 157,27% | F13: h | G13: 0.168 | H13: 18.01 | I13: =TRUNC(ROUND(G13*H13,2),2) -> R$ 3.03
A15: TOTAL A | I15: =SUM(I12:I13) -> 6.62
A17: MATERIAIS/ SERVIÇOS
A18: CÓD. | B18: ORGÃO | C18: DESCRIÇÃO | F18: UND | G18: COEF | H18: R$ UNIT. | I18: R$ PARCIAL
A19: 2510 | B19: SINAPI | C19: RELE FOTOELETRICO INTERNO E EXTERNO BIVOLT 1000 W, DE CONECTOR, SEM BASE | F19: und | G19: 1.00 | H19: 36.83 | I19: =TRUNC(ROUND(G19*H19,2),2) -> R$ 36.83
A20: 049503 | B20: DER-ES | C20: FITA ISOLANTE NR 33 - 19MM X 20M (LABOR) | F20: und | G20: 0.02 | H20: 28.83 | I20: =TRUNC(ROUND(G20*H20,2),2) -> R$ 0.61
A21: TOTAL B | I21: =SUM(I19:I20) -> R$ 37.44
A23: EQUIPAMENTOS
A24: CÓD. | B24: ORGÃO | C24: DESCRIÇÃO | F24: UND | G24: COEF | H24: R$ UNIT. | I24: R$ PARCIAL
A27: TOTAL C | I27: =SUM(I25:I26) -> R$ 0.00
A29: RESUMO
A30: TOTAL A | I30: =I15 -> 6.62
A31: TOTAL B | I31: =I21 -> 37.44
A32: TOTAL C | I32: =I27 -> 0
A33: PREÇO DE VENDA= TOTAL (A+B+C) | I33: =SUM(I30:I32) -> R$ 44.06
